Workbook

Sheet AER only (hidden)
B1: Data in these columns used for data validation and database purposes.
B2: Date last modified: | C2: 2016-08-08 | D2: added new business names, improved column heading formatting
AC4: FOR ELECTRICITY BUSINESSES ONLY
AC5: Feeder Types | AG5: TasNetworks (D) | AH5: MAIFI flag | AI5: Feeder Names
AC6: CBD | AD6: Urban | AE6: Short rural | AF6: long rural | AG6: EXTRA
B7: dms_TradingName_List | C7: dms_TradingNameFull_List | D7: dms_ABN_List | E7: dms_JurisdictionList | F7: dms_Sector_List | G7: dms_Segment_List | H7: dms_FormControl_List | I7: dms_RPT_List | J7: dms_RPTMonth_List | K7: dms_CRCPlength_List | L7: dms_FRCPlength_List | M7: dms_663_List | N7: dms_DeterminationRef_List | O7: dms_Addr1_List | P7: dms_Addr2_List | Q7: dms_Suburb_List | R7: dms_State_List | S7: dms_PostCode_List | T7: dms_PAddr1_List | U7: dms_PAddr2_List | V7: dms_PSuburb_List | W7: dms_PState_List | X7: dms_PPostCode_List | Y7: dms_ContactName1_List | Z7: dms_ContactPh1_List | AA7: dms_ContactEmail_List | AC7: dms_CBD_flag | AD7: dms_Urban_flag | AE7: dms_ShortRural_flag | AF7: dms_LongRural_flag | AG7: dms_FeederType_5_flag | AH7: dms_MAIFI_flag_List | AI7: dms_FeederName_1 | AJ7: dms_FeederName_2 | AK7: dms_FeederName_3 | AL7: dms_FeederName_4 | AM7: dms_FeederName_5
B8: ActewAGL Distribution | C8: ActewAGL Distribution | D8: 76670568688 | E8: ACT | F8: Electricity | G8: Distribution | H8: Revenue cap | I8: Financial | J8: June | K8: 5 | L8: 5 | M8: 5 | N8: 2014-19 Distribution Determination | O8: 40 Bunda Street | Q8: CANBERRA | R8: ACT | S8: 2600 | T8: GPO BOX 366 | V8: CANBERRA | W8: ACT | X8: 2601 | Y8: Robert Walker | Z8: 02 6248 3847 | AA8: robert.walker@actewagle.com.au | AC8: NO | AD8: YES | AE8: YES | AF8: NO | AG8: NO | AI8: CBD | AJ8: Urban | AK8: Short rural | AL8: Long rural | AN8: ActewAGL Distribution
B9: ActewAGL Distribution (Tx Assets) | C9: ActewAGL Distribution (Tx Assets) | D9: 76670568688 | E9: ACT | F9: Electricity | G9: Distribution | H9: Revenue cap | I9: Financial | J9: June | K9: 5 | L9: 5 | M9: 5 | N9: distribution determination | O9: 40 Bunda Street | Q9: CANBERRA | R9: ACT | S9: 2600 | T9: GPO BOX 366 | V9: CANBERRA | W9: ACT | X9: 2601 | Y9: Robert Walker | Z9: 02 6248 3847 | AA9: robert.walker@actewagle.com.au | AI9: CBD | AJ9: Urban | AK9: Short rural | AL9: Long rural | AN9: ActewAGL Distribution (Tx Assets)
B10: ActewAGL Gas | C10: ActewAGL Gas | D10: 76670568688 | E10: ACT | F10: Gas | G10: Distribution | H10: Weighted average price cap | I10: Financial | J10: June | K10: 5 | L10: 5 | M10: x | O10: 40 Bunda Street | Q10: CANBERRA | R10: ACT | S10: 2600 | T10: GPO BOX 366 | V10: CANBERRA | W10: ACT | X10: 2601 | Y10: Philip Deamer | Z10: 02 6248 3438 | AA10: GasAAReview@actewagl.com.au | AN10: ActewAGL Gas
B11: AGN (SA) | C11: AGN (SA) | D11: 78551685 | E11: SA | F11: Gas | G11: Distribution | H11: Revenue cap | I11: Financial | J11: June | K11: 5 | L11: 5 | M11: 5 | N11: distribution determination | R11: SA | AI11: CBD | AJ11: Urban | AK11: Short rural | AL11: Long rural | AN11: AGN (SA)
B12: AGN (Victoria) | C12: Australian Gas Networks Limited | D12: 19078551685 | E12: Vic | F12: Gas | G12: Distribution | H12: Weighted average price cap | I12: Calendar | J12: December | K12: 5 | L12: 5 | M12: x | O12: Level 10 | P12: 81 Flinders Street | Q12: ADELAIDE | R12: SA | S12: 5000 | Z12: 08 8227 1500 | AN12: AGN (Victoria)
B13: Amadeus | C13: APT Pipelines (NT) Pty Ltd | D13: 39009737393 | E13: NT | F13: Gas | G13: Transmission | H13: Weighted average price cap | I13: Financial | J13: June | K13: 5 | L13: 5 | M13: x | N13: n/a | O13: Level 19, HSBC Building | P13: 580 George Street | Q13: SYDNEY | R13: NSW | S13: 2000 | T13: Level 19, HSBC Building | U13: 580 George Street | V13: SYDNEY | W13: NSW | X13: 2000 | Y13: Alexandra Curran | Z13: 02 9275 0020 | AA13: alexandra.curran@apa.com.au | AN13: Amadeus
B14: APA GasNet | C14: APA VTS Australia Limited | D14: 79096457868 | E14: Vic | F14: Gas | G14: Transmission | H14: Weighted average price cap | I14: Calendar | J14: December | K14: 5 | L14: 5 | M14: x | O14: Level 19, HSBC Building | P14: 580 George Street | Q14: SYDNEY | R14: NSW | S14: 2000 | T14: PO Box R41 | V14: ROYAL EXCHANGE | W14: NSW | X14: 1225 | Z14: 02 9693 0000 | AN14: APA GasNet
B15: Ausgrid | C15: Ausgrid | D15: 67505337385 | E15: NSW | F15: Electricity | G15: Distribution | H15: Revenue cap | I15: Financial | J15: June | K15: 5 | L15: 5 | M15: 5 | N15: 2014-19 Distribution Determination | O15: 570 George St | Q15: SYDNEY | R15: NSW | S15: 2000 | Y15: John Thomson | Z15: (02) 9269 2312 | AA15: john.thomson@ausgrid.com.au | AC15: YES | AD15: YES | AE15: YES | AF15: YES | AG15: NO | AI15: CBD | AJ15: Urban | AK15: Short rural | AL15: Long rural | AN15: Ausgrid
B16: Ausgrid (Tx Assets) | C16: Ausgrid (Tx Assets) | D16: 67505337385 | E16: NSW | F16: Electricity | G16: Distribution | H16: Revenue cap | I16: Financial | J16: June | K16: 5 | L16: 5 | M16: 5 | N16: distribution determination | R16: NSW | AI16: CBD | AJ16: Urban | AK16: Short rural | AL16: Long rural | AN16: Ausgrid (Tx Assets)
B17: AusNet (D) | C17: AusNet Services (D) | D17: 91064651118 | E17: Vic | F17: Electricity | G17: Distribution | H17: Revenue cap | I17: Calendar | J17: December | K17: 5 | L17: 5 | M17: 2 | N17: 2016-20 Distribution Determination | O17: Level 32 | P17: 2 Southbank Boulevard | Q17: SOUTHBANK | R17: Vic | S17: 3006 | T17: Locked Bag 14051 | V17: MELBOURNE CITY MAIL CENTRE | W17: VIC | X17: 8001 | Y17: Hannah Williams | Z17: 03 9683 4088 | AA17: hwilliams@powercor.com.au | AD17: YES | AE17: YES | AF17: YES | AG17: NO | AI17: CBD | AJ17: Urban | AK17: Short rural | AL17: Long rural | AN17: AusNet (D)
B18: AusNet (Gas) | C18: AusNet Gas Services | E18: Vic | F18: Gas | G18: Distribution | H18: Weighted average price cap | I18: Calendar | J18: December | K18: 5 | L18: 5 | M18: X | AN18: AusNet (Gas)
B19: AusNet (T) | C19: AusNet (T) | D19: 78079798173 | E19: Vic | F19: Electricity | G19: Transmission | H19: Revenue cap | I19: Financial | J19: March | K19: 5 | L19: 5 | M19: 2 | N19: transmission determination | O19: Level 32 | P19: 2 Southbank Boulevard | Q19: SOUTHBANK | R19: Vic | S19: 3006 | Y19: Tom Hallam | Z19: 03 9695 6617 | AA19: Thomas.hallam@SP-Ausnet.com.au | AI19: CBD | AJ19: Urban | AK19: Short rural | AL19: Long rural | AN19: AusNet (T)
B20: Australian Distribution Co. | C20: Australian Distribution Co. | D20: 11222333444 | E20: - | F20: Electricity | G20: Distribution | H20: Revenue cap | I20: Financial | J20: June | K20: 5 | L20: 5 | M20: 2 | N20: distribution determination | O20: 123 Straight Street | Q20: SYDNEY | R20: NSW | S20: 2000 | T20: PO Box 123 | V20: SYDNEY | W20: NSW | X20: 2000 | Y20: Bob Smith | Z20: 02 1234 5678 | AA20: bob@auselec.net.au | AI20: CBD | AJ20: Urban | AK20: Short rural | AL20: Long rural | AN20: Australian Distribution Co.
B21: Australian Transmission Co. | C21: Australian Transmission Co. | D21: 11222333444 | E21: - | F21: Electricity | G21: Transmission | H21: Revenue cap | I21: Financial | J21: June | K21: 5 | L21: 5 | M21: 5 | N21: transmission determination | O21: 123 Straight Street | Q21: SYDNEY | R21: NSW | S21: 2000 | T21: PO Box 123 | V21: SYDNEY | W21: NSW | X21: 2000 | Y21: Bob Smith | Z21: 02 1234 5678 | AA21: bob@auselec.net.au | AI21: CBD | AJ21: Urban | AK21: Short rural | AL21: Long rural | AN21: Australian Transmission Co.
B22: CitiPower | C22: CitiPower | D22: 76064651056 | E22: Vic | F22: Electricity | G22: Distribution | H22: Revenue cap | I22: Calendar | J22: December | K22: 5 | L22: 5 | M22: 2 | N22: 2016-20 Distribution Determination | O22: 40 Market Street | Q22: MELBOURNE | R22: Vic | S22: 3000 | T22: Locked Bag 14090 | V22: MELBOURNE | W22: VIC | X22: 8001 | Y22: Hannah Williams | Z22: 03 9683 4088 | AA22: hwilliams@powercor.com.au | AC22: YES | AD22: YES | AE22: NO | AF22: NO | AG22: NO | AI22: CBD | AJ22: Urban | AK22: Short rural | AL22: Long rural | AN22: CitiPower
B23: Directlink | C23: Directlink | D23: 16779340889 | E23: Qld | F23: Electricity | G23: Transmission | H23: Revenue cap | I23: Financial | J23: June | K23: 9 | L23: 5 | M23: 5 | N23: transmission determination | R23: NSW | AI23: CBD | AJ23: Urban | AK23: Short rural | AL23: Long rural | AN23: Directlink
B24: ElectraNet | C24: ElectraNet | D24: 41094482416 | E24: SA | F24: Electricity | G24: Transmission | H24: Revenue cap | I24: Financial | J24: June | K24: 5 | L24: 5 | M24: 5 | N24: transmission determination | O24: 52-55 East Terrace | P24: Rymill Park | Q24: ADELAIDE | R24: SA | S24: 5000 | T24: PO Box 7096 | U24: Hutt Street Post Office | V24: ADELAIDE | W24: SA | Y24: Bill Jackson | Z24: 08 8404 7969 | AA24: jackson.bill@electranet.com.au | AI24: CBD | AJ24: Urban | AK24: Short rural | AL24: Long rural | AN24: ElectraNet
B25: Endeavour Energy | C25: Endeavour Energy | D25: 59253130878 | E25: NSW | F25: Electricity | G25: Distribution | H25: Revenue cap | I25: Financial | J25: June | K25: 5 | L25: 5 | M25: 5 | N25: 2014-19 Distribution Determination | O25: 51 Huntingwood Drive | Q25: HUNTINGWOOD | R25: NSW | S25: 2148 | T25: PO Box 811 | V25: SEVEN HILLS | W25: NSW | Y25: Jon Hocking | Z25: 02 9853 4386 / 0407 348 156 | AA25: Jon.Hocking@Endeavourenergy.com.au | AC25: NO | AD25: YES | AE25: YES | AF25: YES | AG25: NO | AI25: CBD | AJ25: Urban | AK25: Short rural | AL25: Long rural | AN25: Endeavour Energy
B26: Energex | C26: Energex | D26: 40078849055 | E26: Qld | F26: Electricity | G26: Distribution | H26: Revenue cap | I26: Financial | J26: June | K26: 5 | L26: 5 | M26: 5 | N26: 2015-20 Distribution Determination | O26: 26 Reddacliff Street | Q26: NEWSTEAD | R26: Qld | S26: 4006 | T26: 26 Reddacliff Street | V26: NEWSTEAD | W26: QLD | X26: 4006 | Y26: Nicola Roscoe | Z26: 07 3664 5891 | AA26: nicolaroscoe@energex.com.au | AC26: YES | AD26: YES | AE26: YES | AF26: NO | AG26: NO | AI26: CBD | AJ26: Urban | AK26: Short rural | AL26: Long rural | AN26: Energex
B27: Ergon Energy | C27: Ergon Energy | D27: 50087646062 | E27: Qld | F27: Electricity | G27: Distribution | H27: Revenue cap | I27: Financial | J27: June | K27: 5 | L27: 5 | M27: 5 | N27: 2015-20 Distribution Determination | O27: 22 Walker Street | Q27: TOWNSVILLE | R27: Qld | S27: 4810 | T27: Po Box 264 | V27: FORTITUDE VALLEY | W27: QLD | X27: 4006 | Y27: Jenny Doyle, Group Manager Regulatory Affairs | Z27: (07) 3851 6416 | AA27: jenny.doyle@ergon.com.au | AC27: NO | AD27: YES | AE27: YES | AF27: YES | AG27: NO | AI27: CBD | AJ27: Urban | AK27: Short rural | AL27: Long rural | AN27: Ergon Energy
B28: Essential Energy | C28: Essential Energy | D28: 37428185226 | E28: NSW | F28: Electricity | G28: Distribution | H28: Revenue cap | I28: Financial | J28: June | K28: 5 | L28: 5 | M28: 5 | N28: 2014-19 Distribution Determination | O28: 8 Buller Street | Q28: PORT MACQUARIE | R28: NSW | T28: PO Box 5730 | V28: PORT MACQUARIE | W28: NSW | Y28: Catherine Waddell | Z28: 02 6338 3553 | AA28: catherine.waddell@essentialenergy.com.au | AE28: YES | AF28: YES | AG28: NO | AI28: CBD | AJ28: Urban | AK28: Short rural | AL28: Long rural | AN28: Essential Energy
B29: Jemena Electricity | C29: Jemena Electricity | D29: 82064651083 | E29: Vic | F29: Electricity | G29: Distribution | H29: Revenue cap | I29: Calendar | J29: December | K29: 5 | L29: 5 | M29: 2 | N29: 2016-20 Distribution Determination | O29: Level 16 | P29: 567 Collins Street | Q29: MELBOURNE | R29: VIC | S29: 3000 | T29: PO Box 16182 | V29: MELBOURNE | W29: VIC | X29: 8001 | Y29: Robert McMillan | Z29: 03 9173 7000 | AA29: robert.mcmillan@jemena.com.au | AE29: YES | AF29: NO | AG29: NO | AI29: CBD | AJ29: Urban | AK29: Short rural | AL29: Long rural | AN29: Jemena Electricity
B30: JGN | C30: Jemena Gas Networks | E30: NSW | F30: Gas | G30: Distribution | H30: Weighted average price cap | I30: Financial | J30: June | K30: 5 | L30: 5 | AN30: JGN
B31: Multinet Gas | C31: Multinet Gas (DB No.1) Pty Ltd (ACN 086 026 986), Multinet Gas (DB No.2) Pty Ltd (ACN 086 230 122) | D31: 86026986 | E31: Vic | F31: Gas | G31: Distribution | H31: Weighted average price cap | I31: Calendar | J31: December | K31: 5 | L31: 5 | M31: x | AN31: Multinet Gas
B32: Murraylink | C32: Murraylink | D32: 79181207909 | E32: SA | F32: Electricity | G32: Transmission | H32: Revenue cap | I32: Financial | J32: June | K32: 5 | L32: 5 | M32: 5 | N32: transmission determination | AI32: CBD | AJ32: Urban | AK32: Short rural | AL32: Long rural | AN32: Murraylink
B33: Powercor Australia | C33: Powercor Australia | D33: 89064651109 | E33: Vic | F33: Electricity | G33: Distribution | H33: Revenue cap | I33: Calendar | J33: December | K33: 5 | L33: 5 | M33: 2 | N33: 2016-20 Distribution Determination | O33: 40 Market Street | Q33: MELBOURNE | R33: Vic | S33: 3000 | T33: Locked bag 14090 | V33: MELBOURNE | W33: VIC | X33: 8001 | Y33: Hannah Williams | Z33: 03 9683 4088 | AA33: hwilliams@powercor.com.au | AE33: YES | AF33: YES | AG33: NO | AI33: CBD | AJ33: Urban | AK33: Short rural | AL33: Long rural | AN33: Powercor Australia
B34: Powerlink | C34: Queensland Electricity Transmission Corporation Limited trading as Powerlink Queensland | D34: 82078849233 | E34: Qld | F34: Electricity | G34: Transmission | H34: Revenue cap | I34: Financial | J34: June | K34: 5 | L34: 5 | M34: 5 | N34: transmission determination | O34: 33 Harold St | Q34: VIRGINIA | R34: Qld | S34: 4014 | T34: PO Box 1193 | V34: VIRGINIA | W34: QLD | X34: 4014 | Y34: Jennifer Harris | Z34: 07 3860 2667 | AA34: jharris@powerlink.com.au | AI34: CBD | AJ34: Urban | AK34: Short rural | AL34: Long rural | AN34: Powerlink
B35: Roma to Brisbane Pipeline | C35: APT Petroleum Pipelines Limited t/a Roma to Brisbane Pipeline | D35: 009 737 393 | E35: Qld | F35: Gas | G35: Transmission | H35: Revenue cap | I35: Financial | J35: June | K35: 5 | L35: 5 | M35: x | N35: n/a | AI35: CBD | AJ35: Urban | AK35: Short rural | AL35: Long rural | AN35: Roma to Brisbane Pipeline
B36: SA Power Networks | C36: SA Power Networks | D36: 13332330749 | E36: SA | F36: Electricity | G36: Distribution | H36: Revenue cap | I36: Financial | J36: June | K36: 5 | L36: 5 | M36: 5 | N36: 2015-20 Distribution Determination | O36: 1 Anzac Highway | Q36: KESWICK | R36: SA | S36: 5035 | T36: GPO Box 77 | V36: ADELAIDE | W36: SA | Y36: Damien O'Connor | Z36: 08 8404 5066 | AA36: damien.oconnor@sapowernetworks.com.au | AE36: YES | AF36: YES | AG36: NO | AI36: CBD | AJ36: Urban | AK36: Short rural | AL36: Long rural | AN36: SA Power Networks
B37: TasNetworks (D) | C37: TasNetworks (D) | D37: 24167357299 | E37: Tas | F37: Electricity | G37: Distribution | H37: Revenue cap | I37: Financial | J37: June | K37: 5 | L37: 5 | M37: 5 | N37: distribution determination | O37: 21 Kirksway Place | Q37: HOBART | R37: Tas | S37: 7000 | T37: GPO Box 191 | V37: HOBART | W37: Tas | Y37: Leigh Mayne | Z37: 03 6270 3691 | AA37: rrp2012@auroraenergy.com.au | AE37: YES | AF37: YES | AG37: YES | AI37: Critical Infrastructure | AJ37: High density commercial | AK37: Urban | AL37: High density rural | AM37: Low density rural | AN37: TasNetworks (D)
B38: TasNetworks (T) | C38: TasNetworks (T) | D38: 24167357299 | E38: Tas | F38: Electricity | G38: Transmission | H38: Revenue cap | I38: Financial | J38: March | K38: 5 | L38: 5 | M38: 5 | N38: transmission determination | O38: 1-7 Maria Street | Q38: LENAH VALLEY | R38: Tas | S38: 7008 | T38: PO Box 606 | V38: MOONAH | W38: Tas | Y38: Heath Dillon | Z38: 03 6274 3664 | AA38: heath.dillon@transend.com.au | AI38: CBD | AJ38: Urban | AK38: Short rural | AL38: Long rural | AN38: TasNetworks (T)
B39: TransGrid | C39: TransGrid | D39: 19622755774 | E39: NSW | F39: Electricity | G39: Transmission | H39: Revenue cap | I39: Financial | J39: June | K39: 5 | L39: 4 | M39: 5 | N39: transmission determination | O39: 180 Thomas Street | Q39: HAYMARKET | R39: NSW | S39: 2000 | T39: PO Box A1000 | V39: SYDNEY SOUTH | W39: NSW | Y39: Andrew Kingsmill | Z39: 02 9284 3149 | AA39: andrew.kingsmill@transgrid.com.au | AI39: CBD | AJ39: Urban | AK39: Short rural | AL39: Long rural | AN39: TransGrid
B40: United Energy | C40: United Energy | D40: 70064651029 | E40: Vic | F40: Electricity | G40: Distribution | H40: Revenue cap | I40: Calendar | J40: December | K40: 5 | L40: 5 | M40: 2 | N40: 2016-20 Distribution Determination | O40: Level 3 | P40: 6 Nexus Court | Q40: MULGRAVE | R40: Vic | S40: 3149 | T40: PO Box 449 | V40: MOUNT WAVERLEY | W40: VIC | X40: 3170 | Y40: Mathew Abraham | Z40: 03 8846 9758 | AA40: mathew.abraham@ue.com.au | AE40: YES | AF40: NO | AG40: NO | AI40: CBD | AJ40: Urban | AK40: Short rural | AL40: Long rural | AN40: United Energy
B41: Western Power (D) | C41: Western Power (D) | D41: 18540492861 | E41: WA | F41: Electricity | G41: Distribution | H41: Revenue cap | I41: Financial | J41: June | K41: 12 | L41: 4 | M41: x | N41: distribution determination | O41: 363 Wellington Street | Q41: PERTH | R41: WA | S41: 6000 | T41: GPO Box L921 | V41: PERTH | W41: WA | X41: 6842 | Y41: Judy Hunter | Z41: 08 9326 6239 | AA41: judy.hunter@westernpower.com.au | AE41: YES | AF41: YES | AG41: NO | AH41: NO | AI41: CBD | AJ41: Urban | AK41: Short rural | AL41: Long rural | AN41: Western Power (D)
B42: Western Power (T) | C42: Western Power (T) | D42: 18540492861 | E42: WA | F42: Electricity | G42: Transmission | H42: Revenue cap | I42: Financial | J42: June | K42: 12 | L42: 4 | M42: x | N42: transmission determination | O42: 363 Wellington Street | Q42: PERTH | R42: WA | S42: 6000 | T42: GPO Box L921 | V42: PERTH | W42: WA | X42: 6842 | Y42: Judy Hunter | Z42: 08 9326 6239 | AA42: judy.hunter@westernpower.com.au | AE42: YES | AF42: YES | AG42: NO | AI42: CBD | AJ42: Urban | AK42: Short rural | AL42: Long rural | AN42: Western Power (T)
W45: For EB & Reset RINs only
B46: The Reg Year Ending (dms_RYE) must be set to the last year of the regulatory period. For forecast data is is usually (FRCP_y5) for actual it is a single year (CRY). For historical actual data the RYE will need to be set manually in the business details sheet by setting the dms_Multiyear_flag to 1 and putting the correct value in 'dms_Specified_FinalYear. See cells C67:C68 | G46: =IF(dms_RPT="financial",VALUE(LEFT(CRCP_y1,4)-1)&"-"&TEXT(VALUE(RIGHT(CRCP_y1,2)-1),"00"),VALUE(LEFT(CRCP_y1,4)-1)) -> 2012-13 | N46: Drop down selector box for CA & Reset RINs. | O46: For CA & Reset RINs only | W46: for DNSP only | AI46: Reason for interruption | AJ46: dms_Reason_Interruption_Detailed | AK46: dms_Reason_Interruption
B47: dms_Model_List | C47: DELETE NR 'CRY' IF NOT AN ANNUAL RIN (EB, CA , ARR) | E47: dms_RYE_Formula_Result | N47: dms_0203_ProjectType | O47: dms_020303_01_UOM | P47: dms_020501_01_UOM | Q47: dms_020501_02_UOM | R47: dms_020501_03_UOM | S47: dms_020501_04_UOM | T47: dms_020603_01_UOM | U47: dms_040102_01_UOM | V47: dms_040102_04_UOM | W47: dms_030601_01_UOM | X47: dms_030601_02_UOM | Y47: dms_030701_01_UOM | Z47: dms_030702_01_UOM | AA47: dms_030703_01_UOM | AI47: Animal | AJ47: Animal impact | AK47: Animal
B48: ARR | C48: ANNUAL REPORTING STATEMENT | E48: =LEFT(dms_SingleYear_FinalYear_Result,2)&RIGHT(dms_SingleYear_FinalYear_Result,2) -> 2019 | F48: =LEFT(dms_SingleYear_FinalYear_Result,2)&RIGHT(dms_SingleYear_FinalYear_Result,2) | H48: Formula errors are OK | N48: New line on new route - single circuit | O48: Circuit line length in km | P48: 0's | Q48: 0's | R48: 0's | S48: 0's | T48: 0's | U48: 0's | V48: days | W48: minutes/customer | X48: minutes/customer | Y48: Customer / km | Z48: % | AA48: km | AJ48: Animal nesting/burrowing, etc and other | AK48: Asset failure
B49: CA | C49: CATEGORY ANALYSIS | E49: =LEFT(dms_SingleYear_FinalYear_Result,2)&RIGHT(dms_SingleYear_FinalYear_Result,2) -> 2019 | F49: =LEFT(dms_SingleYear_FinalYear_Result,2)&RIGHT(dms_SingleYear_FinalYear_Result,2) | H49: Formula errors are OK | N49: New line on new route - dual circuit | O49: Circuit line length in km | P49: 0's | Q49: 0's | R49: 0's | S49: 0's | T49: 0's | U49: 0's | V49: 0's | W49: minutes/customer | X49: minutes/customer | Y49: MWh/customer | Z49: Number of spans | AJ49: Other | AK49: Other
B50: CPI | C50: CPI | N50: New line on new route - other | O50: Circuit line length in km | P50: MVA added | Q50: MVA added | R50: MVA added | S50: MVA added | T50: 0's | U50: 0's | V50: $0s real | W50: interruptions/customer | X50: interruptions/customer | Y50: kVA / customer | Z50: Number of spans | AI50: Asset failure | AJ50: LV | AK50: Overloads
B51: EB | C51: ECONOMIC BENCHMARKING | E51: =LEFT(dms_SingleYear_FinalYear_Result,2)&RIGHT(dms_SingleYear_FinalYear_Result,2) -> 2019 | F51: =LEFT(dms_SingleYear_FinalYear_Result,2)&RIGHT(dms_SingleYear_FinalYear_Result,2) | H51: Formula errors are OK | N51: Line rebuild over existing route - single circuit | O51: Circuit line length in km | P51: 0's | Q51: 0's | R51: 0's | S51: 0's | T51: 0's | U51: $0s real | V51: 0's | W51: interruptions/customer | X51: interruptions/customer | Z51: Number of spans | AJ51: Distribution substation | AK51: Planned
B52: PTRM | C52: POST TAX REVENUE MODEL | E52: =LEFT(dms_MultiYear_FinalYear_Result,2)&RIGHT(dms_MultiYear_FinalYear_Result,2) -> 2023 | F52: =LEFT(dms_MultiYear_FinalYear_Result,2)&RIGHT(dms_MultiYear_FinalYear_Result,2) | N52: Line rebuild over existing route - dual circuit | O52: Number | P52: total spend $0s real | Q52: total spend $0s real | R52: total spend $0s real | S52: total spend $0s real | T52: (per cent) | Z52: Number of spans | AJ52: HV | AK52: Network business
B53: Reset | C53: REGULATORY REPORTING STATEMENT | E53: =LEFT(dms_MultiYear_FinalYear_Result,2)&RIGHT(dms_MultiYear_FinalYear_Result,2) -> 2023 | F53: =LEFT(dms_MultiYear_FinalYear_Result,2)&RIGHT(dms_MultiYear_FinalYear_Result,2) | H53: Formula errors are OK | N53: Reconductor - Single circuit | O53: Number | P53: net circuit km added | Q53: net circuit km added | R53: net circuit km added | S53: net circuit km added | Z53: Years | AJ53: Zone substation | AK53: Third party
B54: RFM | C54: ROLL FORWARD MODEL | E54: =LEFT(dms_CRCP_FinalYear_Result,2)&RIGHT(dms_CRCP_FinalYear_Result,2) -> 2018 | F54: =LEFT(dms_CRCP_FinalYear_Result,2)&RIGHT(dms_CRCP_FinalYear_Result,2) | N54: Reconductor - Dual circuit | O54: Number | P54: total spend $0s real | Q54: total spend $0s real | R54: total spend $0s real | S54: total spend $0s real | Z54: Years | AJ54: Subtransmission | AK54: Unknown
B55: WACC | C55: WEIGHTED AVERAGE COST OF CAPITAL | E55: =LEFT(dms_MultiYear_FinalYear_Result,2)&RIGHT(dms_MultiYear_FinalYear_Result,2) -> 2023 | F55: =LEFT(dms_MultiYear_FinalYear_Result,2)&RIGHT(dms_MultiYear_FinalYear_Result,2) | N55: Other | P55: net circuit km added | Q55: net circuit km added | R55: net circuit km added | S55: net circuit km added | Z55: Trees | AI55: Other | AJ55: insert description of 'other' | AK55: Vegetation
P56: total spend $0s real | Q56: total spend $0s real | R56: total spend $0s real | S56: total spend $0s real | Z56: Trees | AI56: Overloads | AJ56: - | AK56: Weather
P57: 0's | R57: $0s real | Z57: Defects | AI57: Planned | AJ57: - | AK57: 2 - STPIS Exclusion (3.3)(a)
P58: 0's | Z58: Defects | AI58: Network business | AJ58: Network error | AK58: 3 - STPIS Exclusion (3.3)(a)
P59: 0's | Z59: Spans | AJ59: Switching and protection error | AK59: 4 - STPIS Exclusion (3.3)(a)
P60: $0s real | Z60: km | AI60: Third party | AJ60: Fire | AK60: 5 - STPIS Exclusion (3.3)(a)
Z61: Spans | AJ61: Other | AK61: 6 - STPIS Exclusion (3.3)(a)
AJ62: Dig-in | AK62: 7 - STPIS Exclusion (3.3)(a)
AJ63: Unauthorised access
B64: For all files either AER or business needs to be able to specify the type of submission | C64: For PTRM & RFM templates we must provide a choice in case they change their form of control - otherwise it is drawn from the business specific lookup table above. | E64: These are indeces and lookup values for various dates. All step from the value placed in FRCP_y1 on the business and other details worksheet | W64: for TNSP only | AJ64: Vehicle impact
B65: dms_SourceList | C65: dms_FormControl_Choices | E65: dms_FRCPlength_Num_List | F65: dms_FinalYear_List | G65: dms_CRCPlength_Num_List | H65: dms_CFinalYear_List | I65: dms_FRCP_years | K65: dms_CRCP_years | M65: dms_CRCP_index | W65: dms_030601_01_UOM | Y65: dms_030701_01_UOM | Z65: dms_030702_01_UOM | AI65: Unknown | AJ65: Unknown
B66: After appeal | C66: Revenue cap | E66: 1 | F66: dms_FRCP_y1 | G66: 1 | H66: CRCP_y1 | I66: =FRCP_y1 -> 2018-19 | J66: dms_FRCP_y1 | K66: =IF(dms_RPT="financial",VALUE(LEFT(dms_FRCP_y1,4)-1)&"-"&TEXT(VALUE(MID(dms_FRCP_y1,3,2)),"00"),VALUE(LEFT(dms_FRCP_y1,4)-1)) -> 2017-18 | L66: dms_CRCP_yZ | M66: 1 | W66: % | Y66: Number of spans | Z66: km | AI66: Vegetation | AJ66: Blow-in/Fall-in - NSP responsibility
B67: Draft decision | C67: Revenue yield | E67: 2 | F67: dms_FRCP_y2 | G67: 2 | H67: CRCP_y2 | I67: =IF(dms_RPT="financial",VALUE(LEFT(dms_FRCP_y1,4)+1)&"-"&TEXT(VALUE(RIGHT(dms_FRCP_y1,2)+1),"00"),VALUE(LEFT(dms_FRCP_y1,4)+1)) -> 2019-20 | J67: dms_FRCP_y2 | K67: =IF(dms_RPT="financial",VALUE(LEFT(dms_CRCP_yZ,4)-1)&"-"&TEXT(VALUE(MID(dms_CRCP_yZ,3,2)),"00"),VALUE(LEFT(dms_CRCP_yZ,4)-1)) -> 2016-17 | L67: dms_CRCP_yY | M67: 2 | W67: number | Y67: Years | Z67: % | AJ67: Grow-in - NSP responsibility
B68: Final decision | C68: Weighted average price cap | E68: 3 | F68: dms_FRCP_y3 | G68: 3 | H68: CRCP_y3 | I68: =IF(dms_RPT="financial",VALUE(LEFT(dms_FRCP_y2,4)+1)&"-"&TEXT(VALUE(RIGHT(dms_FRCP_y2,2)+1),"00"),VALUE(LEFT(dms_FRCP_y2,4)+1)) -> 2020-21 | J68: dms_FRCP_y3 | K68: =IF(dms_RPT="financial",VALUE(LEFT(dms_CRCP_yY,4)-1)&"-"&TEXT(VALUE(MID(dms_CRCP_yY,3,2)),"00"),VALUE(LEFT(dms_CRCP_yY,4)-1)) -> 2015-16 | L68: dms_CRCP_yX | M68: 3 | W68: number | Y68: Trees | Z68: km | AJ68: Blow-in/Fall-in - Other responsible party
B69: PTRM update 1 | E69: 4 | F69: dms_FRCP_y4 | G69: 4 | H69: CRCP_y4 | I69: =IF(dms_RPT="financial",VALUE(LEFT(dms_FRCP_y3,4)+1)&"-"&TEXT(VALUE(RIGHT(dms_FRCP_y3,2)+1),"00"),VALUE(LEFT(dms_FRCP_y3,4)+1)) -> 2021-22 | J69: dms_FRCP_y4 | K69: =IF(dms_RPT="financial",VALUE(LEFT(dms_CRCP_yX,4)-1)&"-"&TEXT(VALUE(MID(dms_CRCP_yX,3,2)),"00"),VALUE(LEFT(dms_CRCP_yX,4)-1)) -> 2014-15 | L69: dms_CRCP_yW | M69: 4 | W69: % | Y69: Defects | Z69: number | AJ69: Grow-in - Other responsible party
B70: PTRM update 2 | E70: 5 | F70: dms_FRCP_y5 | G70: 5 | H70: CRCP_y5 | I70: =IF(dms_RPT="financial",VALUE(LEFT(dms_FRCP_y4,4)+1)&"-"&TEXT(VALUE(RIGHT(dms_FRCP_y4,2)+1),"00"),VALUE(LEFT(dms_FRCP_y4,4)+1)) -> 2022-23 | J70: dms_FRCP_y5 | K70: =IF(dms_RPT="financial",VALUE(LEFT(dms_CRCP_yW,4)-1)&"-"&TEXT(VALUE(MID(dms_CRCP_yW,3,2)),"00"),VALUE(LEFT(dms_CRCP_yW,4)-1)) -> 2013-14 | L70: dms_CRCP_yV | M70: 5 | W70: number | Y70: Number of spans | AI70: Weather
B71: PTRM update 3 | E71: 6 | F71: dms_FRCP_y6 | G71: 6 | H71: CRCP_y6 | I71: =IF(dms_RPT="financial",VALUE(LEFT(dms_FRCP_y5,4)+1)&"-"&TEXT(VALUE(RIGHT(dms_FRCP_y5,2)+1),"00"),VALUE(LEFT(dms_FRCP_y5,4)+1)) -> 2023-24 | J71: dms_FRCP_y6 | K71: =IF(dms_RPT="financial",VALUE(LEFT(dms_CRCP_yV,4)-1)&"-"&TEXT(VALUE(MID(dms_CRCP_yV,3,2)),"00"),VALUE(LEFT(dms_CRCP_yV,4)-1)) -> 2012-13 | L71: dms_CRCP_yU | M71: 6 | W71: number | Y71: km | AI71: 2 - STPIS Exclusion (3.3)(a)
B72: PTRM update 4 | E72: 7 | F72: dms_FRCP_y7 | G72: 7 | H72: CRCP_y7 | I72: =IF(dms_RPT="financial",VALUE(LEFT(dms_FRCP_y6,4)+1)&"-"&TEXT(VALUE(RIGHT(dms_FRCP_y6,2)+1),"00"),VALUE(LEFT(dms_FRCP_y6,4)+1)) -> 2024-25 | J72: dms_FRCP_y7 | K72: =IF(dms_RPT="financial",VALUE(LEFT(dms_CRCP_yU,4)-1)&"-"&TEXT(VALUE(MID(dms_CRCP_yU,3,2)),"00"),VALUE(LEFT(dms_CRCP_yU,4)-1)) -> 2011-12 | L72: dms_CRCP_yT | M72: 7 | W72: % | Y72: km | AI72: 3 - STPIS Exclusion (3.3)(a)
B73: PTRM update 5 | E73: 8 | F73: dms_FRCP_y8 | G73: 8 | H73: CRCP_y8 | I73: =IF(dms_RPT="financial",VALUE(LEFT(dms_FRCP_y7,4)+1)&"-"&TEXT(VALUE(RIGHT(dms_FRCP_y7,2)+1),"00"),VALUE(LEFT(dms_FRCP_y7,4)+1)) -> 2025-26 | J73: dms_FRCP_y8 | K73: =IF(dms_RPT="financial",VALUE(LEFT(dms_CRCP_yT,4)-1)&"-"&TEXT(VALUE(MID(dms_CRCP_yT,3,2)),"00"),VALUE(LEFT(dms_CRCP_yT,4)-1)) -> 2010-11 | L73: dms_CRCP_yS | M73: 8 | W73: number | Y73: Number of spans | AI73: 4 - STPIS Exclusion (3.3)(a)
B74: PTRM update 6 | E74: 9 | F74: dms_FRCP_y9 | G74: 9 | H74: CRCP_y9 | I74: =IF(dms_RPT="financial",VALUE(LEFT(dms_FRCP_y8,4)+1)&"-"&TEXT(VALUE(RIGHT(dms_FRCP_y8,2)+1),"00"),VALUE(LEFT(dms_FRCP_y8,4)+1)) -> 2026-27 | J74: dms_FRCP_y9 | K74: =IF(dms_RPT="financial",VALUE(LEFT(dms_CRCP_yS,4)-1)&"-"&TEXT(VALUE(MID(dms_CRCP_yS,3,2)),"00"),VALUE(LEFT(dms_CRCP_yS,4)-1)) -> 2009-10 | L74: dms_CRCP_yR | M74: 9 | W74: number | AI74: 5 - STPIS Exclusion (3.3)(a)
B75: PTRM update 7 | E75: 10 | F75: dms_FRCP_y10 | G75: 10 | H75: CRCP_y10 | I75: =IF(dms_RPT="financial",VALUE(LEFT(dms_FRCP_y9,4)+1)&"-"&TEXT(VALUE(RIGHT(dms_FRCP_y9,2)+1),"00"),VALUE(LEFT(dms_FRCP_y9,4)+1)) -> 2027-28 | J75: dms_FRCP_y10 | K75: =IF(dms_RPT="financial",VALUE(LEFT(dms_CRCP_yR,4)-1)&"-"&TEXT(VALUE(MID(dms_CRCP_yR,3,2)),"00"),VALUE(LEFT(dms_CRCP_yR,4)-1)) -> 2008-09 | L75: dms_CRCP_yQ | M75: 10 | W75: % | AI75: 6 - STPIS Exclusion (3.3)(a)
B76: Regulatory proposal | E76: 11 | F76: dms_FRCP_y11 | G76: 11 | H76: CRCP_y11 | I76: =IF(dms_RPT="financial",VALUE(LEFT(dms_FRCP_y10,4)+1)&"-"&TEXT(VALUE(RIGHT(dms_FRCP_y10,2)+1),"00"),VALUE(LEFT(dms_FRCP_y10,4)+1)) -> 2028-29 | J76: dms_FRCP_y11 | K76: =IF(dms_RPT="financial",VALUE(LEFT(dms_CRCP_yQ,4)-1)&"-"&TEXT(VALUE(MID(dms_CRCP_yQ,3,2)),"00"),VALUE(LEFT(dms_CRCP_yQ,4)-1)) -> 2007-08 | L76: dms_CRCP_yP | M76: 11 | W76: number | AI76: 7 - STPIS Exclusion (3.3)(a)
B77: Reporting | E77: 12 | F77: dms_FRCP_y12 | G77: 12 | H77: CRCP_y12 | I77: =IF(dms_RPT="financial",VALUE(LEFT(dms_FRCP_y11,4)+1)&"-"&TEXT(VALUE(RIGHT(dms_FRCP_y11,2)+1),"00"),VALUE(LEFT(dms_FRCP_y11,4)+1)) -> 2029-30 | J77: dms_FRCP_y12 | K77: =IF(dms_RPT="financial",VALUE(LEFT(dms_CRCP_yP,4)-1)&"-"&TEXT(VALUE(MID(dms_CRCP_yP,3,2)),"00"),VALUE(LEFT(dms_CRCP_yP,4)-1)) -> 2006-07 | L77: dms_CRCP_yO | M77: 12 | W77: %
B78: Revised regulatory proposal | E78: 13 | F78: dms_FRCP_y13 | G78: 13 | H78: CRCP_y13 | I78: =IF(dms_RPT="financial",VALUE(LEFT(dms_FRCP_y12,4)+1)&"-"&TEXT(VALUE(RIGHT(dms_FRCP_y12,2)+1),"00"),VALUE(LEFT(dms_FRCP_y12,4)+1)) -> 2030-31 | J78: dms_FRCP_y13 | K78: =IF(dms_RPT="financial",VALUE(LEFT(dms_CRCP_yO,4)-1)&"-"&TEXT(VALUE(MID(dms_CRCP_yO,3,2)),"00"),VALUE(LEFT(dms_CRCP_yO,4)-1)) -> 2005-06 | L78: dms_CRCP_yN | M78: 13 | W78: number
E79: 14 | F79: dms_FRCP_y14 | G79: 14 | H79: CRCP_y14 | I79: =IF(dms_RPT="financial",VALUE(LEFT(dms_FRCP_y13,4)+1)&"-"&TEXT(VALUE(RIGHT(dms_FRCP_y13,2)+1),"00"),VALUE(LEFT(dms_FRCP_y13,4)+1)) -> 2031-32 | J79: dms_FRCP_y14 | K79: =IF(dms_RPT="financial",VALUE(LEFT(dms_CRCP_yN,4)-1)&"-"&TEXT(VALUE(MID(dms_CRCP_yN,3,2)),"00"),VALUE(LEFT(dms_CRCP_yN,4)-1)) -> 2004-05 | L79: dms_CRCP_yM | M79: 14 | W79: %
E80: 15 | F80: dms_FRCP_y15 | G80: 15 | H80: CRCP_y15 | I80: =IF(dms_RPT="financial",VALUE(LEFT(dms_FRCP_y14,4)+1)&"-"&TEXT(VALUE(RIGHT(dms_FRCP_y14,2)+1),"00"),VALUE(LEFT(dms_FRCP_y14,4)+1)) -> 2032-33 | J80: dms_FRCP_y15 | K80: =IF(dms_RPT="financial",VALUE(LEFT(dms_CRCP_yM,4)-1)&"-"&TEXT(VALUE(MID(dms_CRCP_yM,3,2)),"00"),VALUE(LEFT(dms_CRCP_yM,4)-1)) -> 2003-04 | L80: dms_CRCP_yL | M80: 15 | W80: number
E82: These are drop down lists for businesses to select the correct FRCP_y1 on the business and other details worksheet. This also populates the column headings in the worksheets
B83: dms_DataQuality_List | E83: dms_RCP_fyear_list | F83: dms_CRY_ListF | G83: dms_CRY_ListC | H83: dms_RCP_cyear_list | I83: dms_FRCP_fyear_list | J83: dms_FRCP_ListF | K83: dms_FRCP_ListC | L83: dms_FRCP_cyear_list
B84: Actual | E84: dms_fy1 | F84: 2006-07 | G84: 2007 | H84: dms_cy1 | I84: dms_frcp_fy1 | J84: 2016-17 | K84: 2017 | L84: dms_crcp_cy1
B85: Estimate | E85: dms_fy2 | F85: 2007-08 | G85: 2008 | H85: dms_cy2 | I85: dms_frcp_fy2 | J85: 2017-18 | K85: 2018 | L85: dms_crcp_cy2
B86: Consolidated | E86: dms_fy3 | F86: 2008-09 | G86: 2009 | H86: dms_cy3 | I86: dms_frcp_fy3 | J86: 2018-19 | K86: 2019 | L86: dms_crcp_cy3
B87: Recast | E87: dms_fy4 | F87: 2009-10 | G87: 2010 | H87: dms_cy4 | I87: dms_frcp_fy4 | J87: 2019-20 | K87: 2020 | L87: dms_crcp_cy4
B88: Public | E88: dms_fy5 | F88: 2010-11 | G88: 2011 | H88: dms_cy5 | I88: dms_frcp_fy5 | J88: 2020-21 | K88: 2021 | L88: dms_crcp_cy5
E89: dms_fy6 | F89: 2011-12 | G89: 2012 | H89: dms_cy6 | I89: dms_frcp_fy6 | J89: 2021-22 | K89: 2022 | L89: dms_crcp_cy6
E90: dms_fy7 | F90: 2012-13 | G90: 2013 | H90: dms_cy7 | I90: dms_frcp_fy7 | J90: 2022-23 | K90: 2023 | L90: dms_crcp_cy7
E91: dms_fy8 | F91: 2013-14 | G91: 2014 | H91: dms_cy8 | I91: dms_frcp_fy8 | J91: 2023-24 | K91: 2024 | L91: dms_crcp_cy8
E92: dms_fy9 | F92: 2014-15 | G92: 2015 | H92: dms_cy9 | I92: dms_frcp_fy9 | J92: 2024-25 | K92: 2025 | L92: dms_crcp_cy9
E93: dms_fy10 | F93: 2015-16 | G93: 2016 | H93: dms_cy10 | I93: dms_frcp_fy10 | J93: 2025-26 | K93: 2026 | L93: dms_crcp_cy10
E94: dms_fy11 | F94: 2016-17 | G94: 2017 | H94: dms_cy11 | I94: dms_frcp_fy11 | J94: 2026-27 | K94: 2027 | L94: dms_crcp_cy11
E95: dms_fy12 | F95: 2017-18 | G95: 2018 | H95: dms_cy12 | I95: dms_frcp_fy12 | J95: 2027-28 | K95: 2028 | L95: dms_crcp_cy12
E96: dms_fy13 | F96: 2018-19 | G96: 2019 | H96: dms_cy13 | I96: dms_frcp_fy13 | J96: 2028-29 | K96: 2029 | L96: dms_crcp_cy13
E97: dms_fy14 | F97: 2019-20 | G97: 2020 | H97: dms_cy14 | I97: dms_frcp_fy14 | J97: 2029-30 | K97: 2030 | L97: dms_crcp_cy14
E98: dms_fy15 | F98: 2020-21 | G98: 2021 | H98: dms_cy15 | I98: dms_frcp_fy15 | J98: 2030-31 | K98: 2031 | L98: dms_crcp_cy15

Sheet Instructions
B2: =CONCATENATE(dms_Segment," Network Service Provider") -> Transmission Network Service Provider
B3: =IF(dms_Model="Reset","Regulatory Proposal RIN Template","Annual Reporting RIN") -> Regulatory Proposal RIN Template
C4: =CONCATENATE("This template is to be used by ",dms_TradingName," to fulfil its reporting obligations to the AER.") -> This template is to be used by Murraylink to fulfil its reporting obligations to the AER.
C5: INSTRUCTIONS
C6: Complete the Business & other details worksheet before entering data or values in any other worksheets. The Business & other details worksheet is linked to other worksheets within the workbook and automatically generates certain column headings and conditional formatting.
C8: Identifying CONFIDENTIAL INFORMATION: Please use the macro at the top of each worksheet to identify confidential information.
C9: -Do this by selecting the cell or cells that contain confidential information and then run the Mark selected cells as CONFIDENTIAL macro. This will format the cells a specific colour that is identified by the AER's database which in turn marks that information as confidential. -To reverse this, select the cell or cells and run the Return cells to NON-CONFIDENTIAL macro.
C11: UNITS OF MEASURE All amounts are to be unrounded and reported on a one for one basis: that is 1000 is to be entered as '1000'. Applicable units of measure may be identified in the table column headings or row descriptors.
C13: COLOUR CODING OF INPUT / NON-INPUT CELLS:
D14: Yellow = Input cell (mandatory)
D15: Darker yellow = input cell (mandatory)
D16: Orange = input cell (if data available)
D17: Grey = Not applicable/No inputs required
D18: PLEASE DO NOT ENTER TEXT into cells that are to contain numeric data.
C21: WORKSHEET NAVIGATION Many tables in the worksheets have been "grouped" to allow for easy navigation. To ungroup or group data use the outline symbols in the left margin (for Row groupings) or above the columns (for column groupings).
C23: RETURNING COMPLETED RESPONSES Please return two (2) files to the AER: 1. A confidential version which must contain a complete set of all responses with confidential information marked using the Mark selected cells CONFIDENTIAL macro and which has been completed using the locked template file provided by the AER. 2. A public version with confidential information either removed completely or aggregated in some form together with writtten consent to disclose the public version of the response. Use the drop down box on the Business and other details worksheet to identify the file as either confidential ('consolidated') or public.
C25: SUBMITTING AMENDED DATA TO THE AER If an NSP wishes to correct data previously submitted to the AER it should resubmit that data using the original completed submission as the starting point. Please make any necessary changes to the data. Data that is not being amended should be left unchanged. NSPs must identify the reason for the amendments in the Amendment Reason box on the Business and other details worksheet. NSPs may provide further details regarding any amendments in the Amendments worksheet. .
C26: NSP may use Amended Data macro to highlight cells that contain amended data. NB: if data is also CONFIDENTIAL, re-apply the Confidentiality macro after applying the Amended macro
C27: Please resubmit two (2) files - a confidential version and a public version of the amended submission to the AER

Sheet Business & other details
B1: =IF(dms_DataQuality="backcast",INDEX(dms_Worksheet_List,MATCH(dms_Model,dms_Model_List))&" BACKCAST",INDEX(dms_Worksheet_List,MATCH(dms_Model,dms_Model_List))) -> REGULATORY REPORTING STATEMENT
B2: =INDEX(dms_TradingNameFull_List,MATCH(dms_TradingName,dms_TradingName_List)) -> Murraylink
B3: =IF(SUM(dms_SingleYear_Model)>0,CRY,CONCATENATE(FRCP_y1," to ",dms_MultiYear_FinalYear_Result)) -> 2018-19 to 2022-23
B4: BUSINESS & OTHER DETAILS
B7: Instructions
B8: Complete the following business details regulatory template before entering data or values in any other regulatory template. This regulatory template is linked to other cells within the spreadsheet and automatically generates column headings and conditional formatting to distinguish business specific input and non-input cells.
B10: SUBMISSION PARTICULARS INPUT SHEETS
B12: ENTITY DETAILS
B14: Short name | C14: Murraylink | F14: Select business name from drop down list first
B15: ACN / ABN | C15: 42089875605
B18: Business address | C18: Address 1 | E18: Level 19
D19: Address 2 | E19: 580 George Street
C20: Suburb | E20: Sydney
D21: State | E21: NSW | F21: p/code | G21: 2000
B23: Postal address | C23: Address 1 | E23: As above
D24: Address 2 | E24: =IF(ISBLANK(INDEX(dms_PAddr2_List,MATCH(dms_TradingName,dms_TradingName_List))),"",INDEX(dms_PAddr2_List,MATCH(dms_TradingName,dms_TradingName_List))) -> 
C25: Suburb
D26: State | E26: =INDEX(dms_PState_List,MATCH(dms_TradingName,dms_TradingName_List)) -> 0 | F26: p/code | G26: =INDEX(dms_PPostCode_List,MATCH(dms_TradingName,dms_TradingName_List)) -> 0
B29: Contact name/s | C29: Mark Allen
B30: Contact phone/s | C30: 02 9275 0010
B31: Contact email address/s | C31: mark.allen@apa.com.au
B33: REGULATORY CONTROL PERIODS
B35: Forthcoming regulatory control period | C35: 2018-19 | D35: =dms_FRCP_y2 -> 2019-20 | E35: =dms_FRCP_y3 -> 2020-21 | F35: =dms_FRCP_y4 -> 2021-22 | G35: =dms_FRCP_y5 -> 2022-23 | H35: =dms_FRCP_y6 -> 2023-24 | I35: =dms_FRCP_y7 -> 2024-25 | J35: =dms_FRCP_y8 -> 2025-26 | K35: =dms_FRCP_y9 -> 2026-27 | L35: =dms_FRCP_y10 -> 2027-28
B38: Current regulatory control period | C38: =dms_CRCP_FirstYear_Result -> 2013-14 | D38: =IF(dms_RPT="financial",VALUE(LEFT(CRCP_y1,4)+1)&"-"&TEXT(MID(CRCP_y1,3,2)+2,"00"),VALUE(LEFT(CRCP_y1,4)+1)) -> 2014-15 | E38: =IF(dms_RPT="financial",VALUE(LEFT(CRCP_y2,4)+1)&"-"&TEXT(VALUE(MID(CRCP_y2,3,2)+2),"00"),VALUE(LEFT(CRCP_y2,4)+1)) -> 2015-16 | F38: =IF(dms_RPT="financial",VALUE(LEFT(CRCP_y3,4)+1)&"-"&TEXT(VALUE(MID(CRCP_y3,3,2)+2),"00"),VALUE(LEFT(CRCP_y3,4)+1)) -> 2016-17 | G38: =IF(dms_RPT="financial",VALUE(LEFT(CRCP_y4,4)+1)&"-"&TEXT(VALUE(MID(CRCP_y4,3,2)+2),"00"),VALUE(LEFT(CRCP_y4,4)+1)) -> 2017-18 | H38: =IF(dms_RPT="financial",VALUE(LEFT(CRCP_y5,4)+1)&"-"&TEXT(VALUE(MID(CRCP_y5,3,2)+2),"00"),VALUE(LEFT(CRCP_y5,4)+1)) -> 2018-19 | I38: =IF(dms_RPT="financial",VALUE(LEFT(CRCP_y6,4)+1)&"-"&TEXT(VALUE(MID(CRCP_y6,3,2)+2),"00"),VALUE(LEFT(CRCP_y6,4)+1)) -> 2019-20 | J38: =IF(dms_RPT="financial",VALUE(LEFT(CRCP_y7,4)+1)&"-"&TEXT(VALUE(MID(CRCP_y7,3,2)+2),"00"),VALUE(LEFT(CRCP_y7,4)+1)) -> 2020-21 | K38: =IF(dms_RPT="financial",VALUE(LEFT(CRCP_y8,4)+1)&"-"&TEXT(VALUE(MID(CRCP_y8,3,2)+2),"00"),VALUE(LEFT(CRCP_y8,4)+1)) -> 2021-22 | L38: =IF(dms_RPT="financial",VALUE(LEFT(CRCP_y9,4)+1)&"-"&TEXT(VALUE(MID(CRCP_y9,3,2)+2),"00"),VALUE(LEFT(CRCP_y9,4)+1)) -> 2022-23
B41: Previous regulatory control period | C41: =IF(dms_RPT="financial",VALUE(LEFT(PRCP_y2,4)-1)&"-"&TEXT(VALUE(MID(PRCP_y2,3,2)),"00"),VALUE(LEFT(PRCP_y2,4)-1)) -> 2008-09 | D41: =IF(dms_RPT="financial",VALUE(LEFT(PRCP_y3,4)-1)&"-"&TEXT(VALUE(MID(PRCP_y3,3,2)),"00"),VALUE(LEFT(PRCP_y3,4)-1)) -> 2009-10 | E41: =IF(dms_RPT="financial",VALUE(LEFT(PRCP_y4,4)-1)&"-"&TEXT(VALUE(MID(PRCP_y4,3,2)),"00"),VALUE(LEFT(PRCP_y4,4)-1)) -> 2010-11 | F41: =IF(dms_RPT="financial",VALUE(LEFT(PRCP_y5,4)-1)&"-"&TEXT(VALUE(RIGHT(PRCP_y5,2)-1),"00"),VALUE(LEFT(PRCP_y5,4)-1)) -> 2011-12 | G41: =IF(dms_RPT="financial",VALUE(LEFT(CRCP_y1,4)-1)&"-"&TEXT(VALUE(RIGHT(CRCP_y1,2)-1),"00"),VALUE(LEFT(CRCP_y1,4)-1)) -> 2012-13
B44: Current regulatory year | C44: 2018-19 | D44: CRY
B50: Source | C50: Regulatory proposal | E50: Please select the correct submission type from the dropdown list.
B51: Data quality (actual, estimate, public, consolidated) | C51: Consolidated
B52: Amended RIN submission - amendment reason
B53: Submission Date | C53: 2017-01-30 | D53: dms_SubmissionDate | E53: Please enter date this file submitted to AER (dd/mm/yyyy)
B54: EBSS - First application of scheme in forthcoming period? | C54: No
B55: Sector | C55: =INDEX(dms_Sector_List,MATCH(dms_TradingName,dms_TradingName_List)) -> Electricity | D55: dms_Sector | E55: =INDEX(dms_Sector_List,MATCH(dms_TradingName,dms_TradingName_List))
B56: Segment | C56: =INDEX(dms_Segment_List,MATCH(dms_TradingName,dms_TradingName_List)) -> Transmission | D56: dms_Segment | E56: =INDEX(dms_Segment_List,MATCH(dms_TradingName,dms_TradingName_List))
B57: Regulatory Year Ending | C57: =IF(dms_MultiYear_Flag=1,LEFT(dms_Specified_FinalYear,2)&RIGHT(dms_Specified_FinalYear,2),INDEX(dms_RYE_Formula_Result,MATCH(dms_Model,dms_Model_List))) -> 2023 | D57: dms_RYE | E57: =IF(dms_MultiYear_Flag=1,LEFT(dms_Specified_FinalYear,2)&RIGHT(dms_Specified_FinalYear,2),INDEX(dms_RYE_Formula_Result,MATCH(dms_Model,dms_Model_List)))
B58: Reporting Period Type | C58: =INDEX(dms_RPT_List,MATCH(dms_TradingName,dms_TradingName_List)) -> Financial | D58: dms_RPT | E58: =INDEX(dms_RPT_List,MATCH(dms_TradingName,dms_TradingName_List))
B59: Model or RIN Type | C59: Reset | D59: dms_Model | E59: Drop down selection
B60: Security Classification | C60: Public | D60: dms_Classification | E60: Always Public
B61: Template - version no. | C61: 5 | D61: dms_TemplateNumber
B62: Dollar $ real month | C62: =INDEX(dms_RPTMonth_List,MATCH(dms_TradingName,dms_TradingName_List)) -> June | D62: dms_RPTMonth | E62: =INDEX(dms_RPTMonth_List,MATCH(dms_TradingName,dms_TradingName_List))
B63: Dollar $ real (the last month before the FRCP_y1) | C63: =CONCATENATE(dms_RPTMonth)&" "&VALUE((LEFT(dms_CRCP_FinalYear_Result,2)&RIGHT(dms_CRCP_FinalYear_Result,2))) -> June 2018 | D63: dms_DollarReal | E63: =IF(SUM(dms_SingleYear_Model)>0,CONCATENATE(dms_RPTMonth)&" "&VALUE((LEFT(CRY,2))&RIGHT(CRY,2)),CONCATENATE(dms_RPTMonth)&" "&VALUE((LEFT(dms_CRCP_FinalYear_Result,2)&RIGHT(dms_CRCP_FinalYear_Result,2))))
B64: Form of control | C64: =INDEX(dms_FormControl_List,MATCH(dms_TradingName,dms_TradingName_List)) -> Revenue cap | D64: dms_FormControl | E64: =INDEX(dms_FormControl_List,MATCH(dms_TradingName,dms_TradingName_List))
B65: RIN response - version no. | C65: 1 | D65: dms_RINversion
B66: Jurisdiction | C66: =INDEX(dms_JurisdictionList,MATCH(dms_TradingName,dms_TradingName_List)) -> SA | D66: dms_Jurisdiction | E66: =INDEX(dms_JurisdictionList,MATCH(dms_TradingName,dms_TradingName_List))
B67: Backcast Multiyear EB, CA or ARR? | C67: 0 | D67: dms_MultiYear_Flag | E67: 1=y, 0-n
C68: 2013 | D68: dms_Specified_FinalYear | E68: The result here is returned to dms_CRCP_FinalYear_Result if dms_MultiYear_Flag is set to 1
B69: Single Year Model T/F | C69: =IF(dms_Model="EB",1,0) -> 0 | D69: dms_EB
C70: =IF(dms_Model="CA",1,0) -> 0 | D70: dms_CA | E70: =dms_SingleYear_Model
C71: =IF(dms_Model="ARR",1,0) -> 0 | D71: dms_ARR
B72: Single Year Final Year Reference | C72: CRY | D72: dms_SingleYear_FinalYear_Ref | E72: This is the reference for EB, CA & ARR RINs
B73: Single Year Final Year Result | C73: =INDIRECT(dms_SingleYear_FinalYear_Ref) -> 2018-19 | D73: dms_SingleYear_FinalYear_Result | E73: =INDIRECT(dms_SingleYear_FinalYear_Ref) | I73: Formula errors OK
B74: FRCP length in years | C74: =INDEX(dms_FRCPlength_List,MATCH(dms_TradingName,dms_TradingName_List)) -> 5 | D74: dms_FRCPlength_Num | E74: =INDEX(dms_FRCPlength_List,MATCH(dms_TradingName,dms_TradingName_List))
B75: Multi Year Final Year Reference | C75: =INDEX(dms_FinalYear_List,MATCH(dms_FRCPlength_Num,dms_FRCPlength_Num_List)) -> dms_FRCP_y5 | D75: dms_MultiYear_FinalYear_Ref | E75: =INDEX(dms_FinalYear_List,MATCH(dms_FRCPlength_Num,dms_FRCPlength_Num_List))
B76: Multi Year Final Year Result | C76: =IF(dms_MultiYear_Flag=0,INDIRECT(dms_MultiYear_FinalYear_Ref),dms_Specified_FinalYear) -> 2022-23 | D76: dms_MultiYear_FinalYear_Result | E76: =IF(dms_MultiYear_Flag=0,INDIRECT(dms_MultiYear_FinalYear_Ref),dms_Specified_FinalYear) | I76: Formula errors OK
B77: CRCP length in years | C77: =INDEX(dms_CRCPlength_List,MATCH(dms_TradingName,dms_TradingName_List)) -> 5 | D77: dms_CRCPlength_Num | E77: =INDEX(dms_CRCPlength_List,MATCH(dms_TradingName,dms_TradingName_List))
B78: CRCP Final Year Reference | C78: =INDEX(dms_CFinalYear_List,MATCH(dms_CRCPlength_Num,dms_CRCPlength_Num_List)) -> CRCP_y5 | D78: dms_CRCP_FinalYear_Ref | E78: =INDEX(dms_CFinalYear_List,MATCH(dms_CRCPlength_Num,dms_CRCPlength_Num_List))
B79: CRCP First Year Result | C79: =INDEX(dms_CRCP_years,MATCH(dms_CRCPlength_Num,dms_CRCP_index)) -> 2013-14 | D79: dms_CRCP_FirstYear_Result | E79: =INDEX(dms_CRCP_years,MATCH(dms_CRCPlength_Num,dms_CRCP_index))
B80: CRCP Final Year Result | C80: =IF(dms_MultiYear_Flag=0,(IF(SUM(dms_SingleYear_Model)>0,CRY,dms_CRCP_yZ)),dms_Specified_FinalYear) -> 2017-18 | D80: dms_CRCP_FinalYear_Result | E80: =IF(dms_MultiYear_Flag=0,(IF(SUM(dms_SingleYear_Model)>0,CRY,dms_CRCP_yZ)),dms_Specified_FinalYear)
B81: Table 6.6.3 - Public lighting repair - no. business days | C81: =INDEX(dms_663_List,MATCH(dms_TradingName,dms_TradingName_List)) -> 5 | D81: dms_663
B82: Distribution Determination Reference | C82: =INDEX(dms_DeterminationRef_List,MATCH(dms_TradingName,dms_TradingName_List)) -> transmission determination
B83: Backcast templates only - unit of measure | C83: $0s | D83: dms_Backcast_UOM | E83: If the cover sheet is for Backcast data ensure to apply dms_Backcast_UOM named range to this field. Otherwise, do not apply this named range.
B84: EB/CA Unit of Measure for Monetary Values | C84: $0s | D84: dms_dollar_nom_UOM | E84: If the cover sheet is attached to an EB files make sure this field is set
B86: discard this record? | C86: NO | D86: dms_DISCARD | E86: If record is to be discarded from DB set this flag to YES
B88: USES NAMED RANGES FLAG | C88: yes | D88: dms_Defined_Names_Used

Sheet Contents
C1: =IF(dms_DataQuality="backcast",INDEX(dms_Worksheet_List,MATCH(dms_Model,dms_Model_List))&" BACKCAST",INDEX(dms_Worksheet_List,MATCH(dms_Model,dms_Model_List))) -> REGULATORY REPORTING STATEMENT
C2: =INDEX(dms_TradingNameFull_List,MATCH(dms_TradingName,dms_TradingName_List)) -> Murraylink
C3: =IF(SUM(dms_SingleYear_Model)>0,CRY,CONCATENATE(FRCP_y1," to ",dms_MultiYear_FinalYear_Result)) -> 2018-19 to 2022-23
C4: Contents
F7: 1. Business details | M7: 3. Network information
F12: 2. Expenditure | M12: 7. Other templates

Sheet 2.1 Expenditure Summary
B1: =IF(dms_DataQuality="backcast",INDEX(dms_Worksheet_List,MATCH(dms_Model,dms_Model_List))&" BACKCAST",INDEX(dms_Worksheet_List,MATCH(dms_Model,dms_Model_List))) -> REGULATORY REPORTING STATEMENT
B2: =INDEX(dms_TradingNameFull_List,MATCH(dms_TradingName,dms_TradingName_List)) -> Murraylink
B3: =IF(SUM(dms_SingleYear_Model)>0,CRY,CONCATENATE(FRCP_y1," to ",dms_MultiYear_FinalYear_Result)) -> 2018-19 to 2022-23
B4: 2.1 - EXPENDITURE SUMMARY
B8: 2.1.1 - PRESCRIBED TRANSMISSION SERVICES CAPEX (as incurred)
C10: EXPENDITURE
C11: Actual ($0's, nominal) | F11: =CONCATENATE("Forecast ($0's, real ", dms_DollarReal, ")") -> Forecast ($0's, real June 2018)
C12: =IF(dms_RPT="financial",dms_fy8,dms_cy8) -> 2013-14 | D12: =IF(dms_RPT="financial",dms_fy9,dms_cy9) -> 2014-15 | E12: =IF(dms_RPT="financial",dms_fy10,dms_cy10) -> 2015-16 | F12: =CRCP_y4 -> 2016-17 | G12: =CRCP_y5 -> 2017-18 | H12: =FRCP_y1 -> 2018-19 | I12: =FRCP_y2 -> 2019-20 | J12: =FRCP_y3 -> 2020-21 | K12: =FRCP_y4 -> 2021-22 | L12: =FRCP_y5 -> 2022-23
B13: Replacement expenditure | C13: 322640.44 | D13: 706654.6296 | E13: 894804.92 | F13: 7288366.979 | G13: 7227000 | H13: 5778701.462 | I13: 13854782.27 | J13: 10838475.57 | K13: 2394256.989 | L13: 968667.0731
B14: Connections | C14: 0 | D14: 0 | E14: 0 | F14: 0 | G14: 0 | H14: 0 | I14: 0 | J14: 0 | K14: 0 | L14: 0
B15: Augmentation Expenditure | C15: 0 | D15: 0 | E15: 0 | F15: 0 | G15: 0 | H15: 0 | I15: 0 | J15: 0 | K15: 0 | L15: 0
B16: Non-network | C16: 0 | D16: 0 | E16: 21778.46 | F16: 216774.0741 | G16: 4000 | H16: 0 | I16: 0 | J16: 0 | K16: 0 | L16: 0
B17: Capitalised network overheads | C17: 0 | D17: 0 | E17: 0 | F17: 0 | G17: 0 | H17: 0 | I17: 0 | J17: 0 | K17: 0 | L17: 0
B18: Capitalised corporate overheads | C18: 0 | D18: 0 | E18: 0 | F18: 0 | G18: 0 | H18: 0 | I18: 0 | J18: 0 | K18: 0 | L18: 0
B19: TOTAL CAPEX | C19: =SUM(C13:C18) -> 322640.44 | D19: 706654.6296 | E19: 916583.38 | F19: 7505141.053 | G19: 7231000 | H19: 5778701.462 | I19: 13854782.27 | J19: 10838475.57 | K19: 2394256.989 | L19: 968667.0731

Sheet 2.3c Material Projects
B1: =IF(dms_DataQuality="backcast",INDEX(dms_Worksheet_List,MATCH(dms_Model,dms_Model_List))&" BACKCAST",INDEX(dms_Worksheet_List,MATCH(dms_Model,dms_Model_List))) -> REGULATORY REPORTING STATEMENT
B2: =INDEX(dms_TradingNameFull_List,MATCH(dms_TradingName,dms_TradingName_List)) -> Murraylink
B3: =IF(SUM(dms_SingleYear_Model)>0,CRY,CONCATENATE(FRCP_y1," to ",dms_MultiYear_FinalYear_Result)) -> 2018-19 to 2022-23
B4: 2.3c MATERIAL PROJECTS
B7: Instructions
B8: Enter information for material projects only in the tables below.
B10: 2.3c.1 - PROJECTS IN THE FORTHCOMING REGULATORY CONTROL PERIOD
B12: ONGOING AND FUTURE PROJECTS
B13: Unique identifier | C13: Project name | D13: Description of project | E13: Proposed start date | F13: Proposed commissioning date | G13: Location | H13: Business case approval | I13: Business case approval date | J13: Primary expenditure purpose category | L13: =CONCATENATE("Forecast yearly expenditure - forthcoming regulatory control period, $real ",dms_DollarReal) -> Forecast yearly expenditure - forthcoming regulatory control period, $real June 2018 | Q13: Total
L14: =FRCP_y1 -> 2018-19 | M14: =FRCP_y2 -> 2019-20 | N14: =FRCP_y3 -> 2020-21 | O14: =FRCP_y4 -> 2021-22 | P14: =FRCP_y5 -> 2022-23
B15: Include unique identifier for each project | D15: Provide a brief description of the project stating (where required) whether the regulatory test was satisfied, reference the appropriate documentation and where the regulatory test is yet to be satisfied the estimated timeframe for this to be achieved. | E15: Identify month and year | F15: Identify month and year | G15: Identify location if only one site, if several, e.g. pole replacement, insert 'various'. | H15: Reference the appropriate documentation supporting approval for the project. Where the business case is yet to be approved provide the estimated timeframe for this to be achieved. | I15: Identify month and year of the business case approval (if relevant) | J15: State the primary expenditure purpose category regarding this project. | L15: Include the anticipated or known expenditure of the project by expenditure purpose.
K16: Capital expenditure | L16: 4148613.467 | M16: 12228863.73 | N16: 9511338.46 | O16: 1358762.637 | P16: 0 | Q16: =SUM(L16:P16) -> 27247578.3
B17: Control System | C17: Control System | D17: Upgrade of ABB MACH 2 Control System and accociated hardware including windows operating systems, local and remote workstations, communications systems, input and output control cards. The upgrade will replicate existing operating characteristics. The project is justified under clauses 6A.6.7(a)(3) and (4) of the Rules, being required to ensure the continued reliable operation of MurrayLink. The project will ensure that operation of the control systems remain reliable to minimise the risk of short and long long term outages, should component failure occur and serviceable options no longer exist. | E17: 2018-08-01 | F17: 2021-04-01 | G17: Murraylink Red Cliffs and Berri Converter Stations | H17: MurrayLink Joint Venture Revenue Proposal CAPITAL EXPENDITURE BUSINESS CASES document | I17: Same as Revenue Proposal | J17: Replacement and Refurbishment | K17: Operating expenditure | L17: 0 | M17: 0 | N17: 0 | O17: 0 | P17: 0 | Q17: =SUM(L17:P17) -> 0
K18: Maintenance expenditure | L18: 0 | M18: 0 | N18: 0 | O18: 0 | P18: 0 | Q18: =SUM(L18:P18) -> 0
K19: Total | L19: =SUM(L16:L18) -> 4148613.467 | M19: 12228863.73 | N19: 9511338.46 | O19: 1358762.637 | P19: 0 | Q19: 27247578.3
K20: Capital expenditure | Q20: =SUM(L20:P20) -> 0
K21: Operating expenditure | Q21: =SUM(L21:P21) -> 0
K22: Maintenance expenditure | Q22: =SUM(L22:P22) -> 0
K23: Total | L23: =SUM(L20:L22) -> 0 | M23: 0 | N23: 0 | O23: 0 | P23: 0 | Q23: 0
K24: Capital expenditure | Q24: =SUM(L24:P24) -> 0
K25: Operating expenditure | Q25: =SUM(L25:P25) -> 0
K26: Maintenance expenditure | Q26: =SUM(L26:P26) -> 0
K27: Total | L27: =SUM(L24:L26) -> 0 | M27: 0 | N27: 0 | O27: 0 | P27: 0 | Q27: 0
K28: Capital expenditure | Q28: =SUM(L28:P28) -> 0
K29: Operating expenditure | Q29: =SUM(L29:P29) -> 0
K30: Maintenance expenditure | Q30: =SUM(L30:P30) -> 0
K31: Total | L31: =SUM(L28:L30) -> 0 | M31: 0 | N31: 0 | O31: 0 | P31: 0 | Q31: 0
K32: Capital expenditure | Q32: =SUM(L32:P32) -> 0
K33: Operating expenditure | Q33: =SUM(L33:P33) -> 0
K34: Maintenance expenditure | Q34: =SUM(L34:P34) -> 0
K35: Total | L35: =SUM(L32:L34) -> 0 | M35: 0 | N35: 0 | O35: 0 | P35: 0 | Q35: 0
K36: Capital expenditure | Q36: =SUM(L36:P36) -> 0
K37: Operating expenditure | Q37: =SUM(L37:P37) -> 0
K38: Maintenance expenditure | Q38: =SUM(L38:P38) -> 0
K39: Total | L39: =SUM(L36:L38) -> 0 | M39: 0 | N39: 0 | O39: 0 | P39: 0 | Q39: 0
K40: Capital expenditure | Q40: =SUM(L40:P40) -> 0
K41: Operating expenditure | Q41: =SUM(L41:P41) -> 0
K42: Maintenance expenditure | Q42: =SUM(L42:P42) -> 0
K43: Total | L43: =SUM(L40:L42) -> 0 | M43: 0 | N43: 0 | O43: 0 | P43: 0 | Q43: 0
K44: Capital expenditure | Q44: =SUM(L44:P44) -> 0
K45: Operating expenditure | Q45: =SUM(L45:P45) -> 0
K46: Maintenance expenditure | Q46: =SUM(L46:P46) -> 0
K47: Total | L47: =SUM(L44:L46) -> 0 | M47: 0 | N47: 0 | O47: 0 | P47: 0 | Q47: 0
K48: Capital expenditure | Q48: =SUM(L48:P48) -> 0
K49: Operating expenditure | Q49: =SUM(L49:P49) -> 0
K50: Maintenance expenditure | Q50: =SUM(L50:P50) -> 0
K51: Total | L51: =SUM(L48:L50) -> 0 | M51: 0 | N51: 0 | O51: 0 | P51: 0 | Q51: 0
K52: Capital expenditure | Q52: =SUM(L52:P52) -> 0
K53: Operating expenditure | Q53: =SUM(L53:P53) -> 0
K54: Maintenance expenditure | Q54: =SUM(L54:P54) -> 0
K55: Total | L55: =SUM(L52:L54) -> 0 | M55: 0 | N55: 0 | O55: 0 | P55: 0 | Q55: 0
K56: Total | L56: =(L19+L23+L27+L31+L35+L39+L43+L47+L51+L55) -> 4148613.467 | M56: 12228863.73 | N56: 9511338.46 | O56: 1358762.637 | P56: 0 | Q56: 27247578.3
B60: 2.3c.2 - PROJECTS IN THE CURRENT REGULATORY CONTROL PERIOD
B62: CURRENT PROJECTS
L63: Yearly expenditure - current regulatory control period (nominal $'0s) | Q63: Total
B64: Unique identifier | C64: Project name | D64: Description of project | E64: Proposed start date | F64: Proposed commissioning date | G64: Location | H64: Business case approval | I64: Business case approval date | J64: Primary expenditure purpose category | L64: =CRCP_y1 -> 2013-14 | M64: =CRCP_y2 -> 2014-15 | N64: =CRCP_y3 -> 2015-16 | O64: =CRCP_y4 -> 2016-17 | P64: =CRCP_y5 -> 2017-18 | Q64: Total
B65: Include unique identifier for each project | D65: Provide a brief description of the project stating (where required) whether the regulatory test was satisfied, reference the appropriate documentation and where the regulatory test is yet to be satisfied the estimated timeframe for this to be achieved. | E65: Identify month and year | F65: Identify month and year | G65: Identify location if only one site, if several, e.g. pole replacement, insert 'various'. | H65: Reference the appropriate documentation supporting approval for the project. Where the business case is yet to be approved provide the estimated timeframe for this to be achieved. | I65: Identify month and year of the business case approval (if relevant) | J65: State the primary expenditure purpose category regarding this project. | L65: Include approved expenditure of the project as at time of business case approval.
K66: Capital expenditure | O66: 6103500 | P66: 6103500 | Q66: =SUM(L66:P66) -> 12207000
B67: Fire Suppression | C67: Fire Suppression | D67: A fire suppression system is required to manage a fire and limit / restrict its spread to other equipment and buildings. The project is justified under clauses 6A.6.7(a)(3) and (4) of the Rules, being required to to manage risks associated with the operation of the MurrayLink facility by: • protecting and limiting the potential for extensive fire damage to MurrayLink assets; • avoiding the risk of an extended shutdown to the link as a result of fire damage; • limiting the potential for damage to adjacent properties; • limiting the risk of injury to employees, emergency response personnel and the general public; and • complying with the recommendations of both energy and insurance industry advisors. | E67: 2017-04-01 | F67: 2018-04-01 | G67: Murraylink Red Cliffs and Berri Converter Stations | H67: MurrayLink Joint Venture Revenue Proposal CAPITAL EXPENDITURE BUSINESS CASES document | I67: Same as Revenue Proposal | J67: Replacement and Refurbishment | K67: Operating expenditure | Q67: =SUM(L67:P67) -> 0
K68: Maintenance expenditure | Q68: =SUM(L68:P68) -> 0
K69: Total | L69: =SUM(L66:L68) -> 0 | M69: 0 | N69: 0 | O69: 6103500 | P69: 6103500 | Q69: 12207000
K70: Capital expenditure | Q70: =SUM(L70:P70) -> 0
K71: Operating expenditure | Q71: =SUM(L71:P71) -> 0
K72: Maintenance expenditure | Q72: =SUM(L72:P72) -> 0
K73: Total | L73: =SUM(L70:L72) -> 0 | M73: 0 | N73: 0 | O73: 0 | P73: 0 | Q73: 0
K74: Capital expenditure | Q74: =SUM(L74:P74) -> 0
K75: Operating expenditure | Q75: =SUM(L75:P75) -> 0
K76: Maintenance expenditure | Q76: =SUM(L76:P76) -> 0
K77: Total | L77: =SUM(L74:L76) -> 0 | M77: 0 | N77: 0 | O77: 0 | P77: 0 | Q77: 0
K78: Capital expenditure | Q78: =SUM(L78:P78) -> 0
K79: Operating expenditure | Q79: =SUM(L79:P79) -> 0
K80: Maintenance expenditure | Q80: =SUM(L80:P80) -> 0
K81: Total | L81: =SUM(L78:L80) -> 0 | M81: 0 | N81: 0 | O81: 0 | P81: 0 | Q81: 0
K82: Capital expenditure | Q82: =SUM(L82:P82) -> 0
K83: Operating expenditure | Q83: =SUM(L83:P83) -> 0
K84: Maintenance expenditure | Q84: =SUM(L84:P84) -> 0
K85: Total | L85: =SUM(L82:L84) -> 0 | M85: 0 | N85: 0 | O85: 0 | P85: 0 | Q85: 0
K86: Capital expenditure | Q86: =SUM(L86:P86) -> 0
K87: Operating expenditure | Q87: =SUM(L87:P87) -> 0
K88: Maintenance expenditure | Q88: =SUM(L88:P88) -> 0
K89: Total | L89: =SUM(L86:L88) -> 0 | M89: 0 | N89: 0 | O89: 0 | P89: 0 | Q89: 0
K90: Capital expenditure | Q90: =SUM(L90:P90) -> 0
K91: Operating expenditure | Q91: =SUM(L91:P91) -> 0
K92: Maintenance expenditure | Q92: =SUM(L92:P92) -> 0
K93: Total | L93: =SUM(L90:L92) -> 0 | M93: 0 | N93: 0 | O93: 0 | P93: 0 | Q93: 0
K94: Capital expenditure | Q94: =SUM(L94:P94) -> 0
K95: Operating expenditure | Q95: =SUM(L95:P95) -> 0
K96: Maintenance expenditure | Q96: =SUM(L96:P96) -> 0
K97: Total | L97: =SUM(L94:L96) -> 0 | M97: 0 | N97: 0 | O97: 0 | P97: 0 | Q97: 0
K98: Capital expenditure | Q98: =SUM(L98:P98) -> 0
K99: Operating expenditure | Q99: =SUM(L99:P99) -> 0
K100: Maintenance expenditure | Q100: =SUM(L100:P100) -> 0
K101: Total | L101: =SUM(L98:L100) -> 0 | M101: 0 | N101: 0 | O101: 0 | P101: 0 | Q101: 0
K102: Capital expenditure | Q102: =SUM(L102:P102) -> 0
K103: Operating expenditure | Q103: =SUM(L103:P103) -> 0
K104: Maintenance expenditure | Q104: =SUM(L104:P104) -> 0
K105: Total | L105: =SUM(L102:L104) -> 0 | M105: 0 | N105: 0 | O105: 0 | P105: 0 | Q105: 0
K106: Total | L106: =(L69+L73+L77+L81+L85+L89+L93+L97+L101+L105) -> 0 | M106: 0 | N106: 0 | O106: 6103500 | P106: 6103500 | Q106: 12207000

Sheet 2.6 Non-network
B1: =IF(dms_DataQuality="backcast",INDEX(dms_Worksheet_List,MATCH(dms_Model,dms_Model_List))&" BACKCAST",INDEX(dms_Worksheet_List,MATCH(dms_Model,dms_Model_List))) -> REGULATORY REPORTING STATEMENT
B2: =INDEX(dms_TradingNameFull_List,MATCH(dms_TradingName,dms_TradingName_List)) -> Murraylink
B3: =IF(SUM(dms_SingleYear_Model)>0,CRY,CONCATENATE(FRCP_y1," to ",dms_MultiYear_FinalYear_Result)) -> 2018-19 to 2022-23
B4: 2.6 NON NETWORK EXPENDITURE
B8: 2.6.1 - NON-NETWORK EXPENDITURE
D9: EXPENDITURE
D10: Actual ($0's, nominal) | L10: =CONCATENATE("Forecast ($0's, real ", dms_DollarReal, ")") -> Forecast ($0's, real June 2018)
D11: =IF(dms_RPT="financial",dms_fy3,dms_cy3) -> 2008-09 | E11: =IF(dms_RPT="financial",dms_fy4,dms_cy4) -> 2009-10 | F11: =IF(dms_RPT="financial",dms_fy5,dms_cy5) -> 2010-11 | G11: =IF(dms_RPT="financial",dms_fy6,dms_cy6) -> 2011-12 | H11: =IF(dms_RPT="financial",dms_fy7,dms_cy7) -> 2012-13 | I11: =IF(dms_RPT="financial",dms_fy8,dms_cy8) -> 2013-14 | J11: =IF(dms_RPT="financial",dms_fy9,dms_cy9) -> 2014-15 | K11: =IF(dms_RPT="financial",dms_fy10,dms_cy10) -> 2015-16 | L11: =CRCP_y4 -> 2016-17 | M11: =CRCP_y5 -> 2017-18 | N11: =FRCP_y1 -> 2018-19 | O11: =FRCP_y2 -> 2019-20 | P11: =FRCP_y3 -> 2020-21 | Q11: =FRCP_y4 -> 2021-22 | R11: =FRCP_y5 -> 2022-23
B12: OPEX
B13: IT & COMMUNICATIONS | C13: Total IT & communications | D13: 0 | E13: 0 | F13: 0 | G13: 0 | H13: 0 | I13: 0 | J13: 0 | K13: 0
B14: MOTOR VEHICLES | C14: Total motor vehicles | D14: 0 | E14: 0 | F14: 0 | G14: 0 | H14: 0 | I14: 0 | J14: 0 | K14: 0
B15: BUILDINGS AND PROPERTY | C15: Total buildings and property expenditure | D15: 51979.71 | E15: 90844.864 | F15: 109735.637 | G15: 83856.184 | H15: 73196.032 | I15: 97648.011 | J15: 96642.966 | K15: 101368.773 | L15: 105464.0714 | M15: 105464.0714 | N15: 105464.0714 | O15: 105464.0714 | P15: 105464.0714 | Q15: 105464.0714 | R15: 105464.0714
B16: OTHER | C16: Total other | D16: 72307.843 | E16: 62116.758 | F16: 33707.421 | G16: 65517.703 | H16: 160220.901 | I16: 61570.142 | J16: 59554.066 | K16: 120431.996 | L16: 125297.4486 | M16: 125297.4486 | N16: 125297.4486 | O16: 125297.4486 | P16: 125297.4486 | Q16: 125297.4486 | R16: 125297.4486
B17: CAPEX
B18: IT & COMMUNICATIONS | C18: Total IT & communications | K18: 981.948 | L18: 0 | M18: 0 | N18: 0 | O18: 0 | P18: 0 | Q18: 0 | R18: 0
B19: MOTOR VEHICLES | C19: Total motor vehicles | K19: 0 | L19: 0 | M19: 0 | N19: 0 | O19: 0 | P19: 0 | Q19: 0 | R19: 0
B20: BUILDINGS AND PROPERTY | C20: Total buildings and property expenditure | K20: 20796.512 | L20: 4051.851852 | M20: 4000 | N20: 0 | O20: 0 | P20: 0 | Q20: 0 | R20: 0
B21: OTHER | C21: Total other | H21: 210583.53 | I21: 0 | J21: 0 | K21: 0 | L21: 212722.2222 | M21: 0 | N21: 0 | O21: 0 | P21: 0 | Q21: 0 | R21: 0

Sheet 2.14 Forecast price changes
B1: =(LOOKUP(dms_Model,dms_Model_List,dms_Worksheet_List)) -> REGULATORY REPORTING STATEMENT
B2: =INDEX(dms_TradingNameFull_List,MATCH(dms_TradingName,dms_TradingName_List)) -> Murraylink
B3: =IF(SUM(dms_SingleYear_Model)>0,CRY,CONCATENATE(FRCP_y1," to ",dms_MultiYear_FinalYear_Result)) -> 2018-19 to 2022-23
B4: 2.14 FORECAST PRICE CHANGES
B6: Instructions
B7: The TNSP must provide all forecast price changes used to forecast opex and capex, including forecast changes in CPI. Forecast price changes must be expressed in real terms, except for CPI. If the same escalators are not used for capex and opex, report capex and opex escalators separately. If price changes for a given year were not used to forecast either opex or capex enter '0' for that year.
B9: 2.14.1 - FORECAST LABOUR AND MATERIALS PRICE CHANGES
C10: Price changes (% YoY real) Current regulatory period | H10: Price changes (%YoY real) Forthcoming regulatory period
C11: Actual | F11: Forecast
C12: =CRCP_y1 -> 2013-14 | D12: =CRCP_y2 -> 2014-15 | E12: =CRCP_y3 -> 2015-16 | F12: =CRCP_y4 -> 2016-17 | G12: =CRCP_y5 -> 2017-18 | H12: =FRCP_y1 -> 2018-19 | I12: =FRCP_y2 -> 2019-20 | J12: =FRCP_y3 -> 2020-21 | K12: =FRCP_y4 -> 2021-22 | L12: =FRCP_y5 -> 2022-23
B13: Materials price changes
B14: N/A
B44: Labour and Other price changes
B45: N/A
B60: CPI | C60: 0.02161100196 | D60: 0.02307692308 | E60: 0.01503759398 | F60: 0.01296296296 | G60: 0.02 | H60: 0.02 | I60: 0.02 | J60: 0.02 | K60: 0.02 | L60: 0.02

Sheet 2.16 Opex
B1: =(LOOKUP(dms_Model,dms_Model_List,dms_Worksheet_List)) -> REGULATORY REPORTING STATEMENT
B2: =INDEX(dms_TradingNameFull_List,MATCH(dms_TradingName,dms_TradingName_List)) -> Murraylink
B3: =IF(SUM(dms_SingleYear_Model)>0,CRY,CONCATENATE(FRCP_y1," to ",dms_MultiYear_FinalYear_Result)) -> 2018-19 to 2022-23
B4: 2.16 OPEX SUMMARY
C6: IMPORTANT! Have you used a base-step-trend model to derive your opex forecast? Yes/No | E6: Yes
B10: 2.16.1 - PRESCRIBED TRANSMISSION SERVICES - OPEX BY DRIVER
C11: EXPENDITURE
C12: Actual ($0's, nominal) | K12: =CONCATENATE("Forecast ($0's, real ", dms_DollarReal, ")") -> Forecast ($0's, real June 2018)
C13: =IF(dms_RPT="financial",dms_fy3,dms_cy3) -> 2008-09 | D13: =IF(dms_RPT="financial",dms_fy4,dms_cy4) -> 2009-10 | E13: =IF(dms_RPT="financial",dms_fy5,dms_cy5) -> 2010-11 | F13: =IF(dms_RPT="financial",dms_fy6,dms_cy6) -> 2011-12 | G13: =IF(dms_RPT="financial",dms_fy7,dms_cy7) -> 2012-13 | H13: =IF(dms_RPT="financial",dms_fy8,dms_cy8) -> 2013-14 | I13: =IF(dms_RPT="financial",dms_fy9,dms_cy9) -> 2014-15 | J13: =IF(dms_RPT="financial",dms_fy10,dms_cy10) -> 2015-16 | K13: =CRCP_y4 -> 2016-17 | L13: =CRCP_y5 -> 2017-18 | M13: =FRCP_y1 -> 2018-19 | N13: =FRCP_y2 -> 2019-20 | O13: =FRCP_y3 -> 2020-21 | P13: =FRCP_y4 -> 2021-22 | Q13: =FRCP_y5 -> 2022-23
B14: Efficient historic opex | K14: 4188794.932 | L14: 4188794.932 | M14: 4188794.932 | N14: 4188794.932 | O14: 4188794.932 | P14: 4188794.932 | Q14: 4188794.932
B15: Real price changes | K15: 0 | L15: 0 | M15: 0 | N15: 0 | O15: 0 | P15: 0 | Q15: 0
B16: Output growth | K16: 0 | L16: 0 | M16: 0 | N16: 0 | O16: 0 | P16: 0 | Q16: 0
B17: Productivity growth | K17: 0 | L17: 0 | M17: 0 | N17: 0 | O17: 0 | P17: 0 | Q17: 0
B18: Step changes | K18: 0 | L18: 0 | M18: 172234.6951 | N18: 172234.6951 | O18: 172234.6951 | P18: 172234.6951 | Q18: 172234.6951
B19: Category specific forecasts | K19: 22852.78031 | L19: 37732.11367 | M19: 21965.379 | N19: 0 | O19: 47167.84867 | P19: 0 | Q19: 170734.775
B20: TOTAL | C20: =SUM(C14:C19) -> 0 | D20: =SUM(D14:D19) -> 0 | E20: =SUM(E14:E19) -> 0 | F20: 0 | G20: 0 | H20: 0 | I20: 0 | J20: 0 | K20: 4211647.713 | L20: =SUM(L14:L19) -> 4226527.046 | M20: =SUM(M14:M19) -> 4382995.006 | N20: =SUM(N14:N19) -> 4361029.627 | O20: =SUM(O14:O19) -> 4408197.476 | P20: =SUM(P14:P19) -> 4361029.627 | Q20: =SUM(Q14:Q19) -> 4531764.402
B22: 2.16.2 - PRESCRIBED TRANSMISSION SERVICES - OPEX BY CATEGORY
C23: EXPENDITURE
C24: Actual ($0's, nominal) | K24: =CONCATENATE("Forecast ($0's, real ", dms_DollarReal, ")") -> Forecast ($0's, real June 2018)
C25: =IF(dms_RPT="financial",dms_fy3,dms_cy3) -> 2008-09 | D25: =IF(dms_RPT="financial",dms_fy4,dms_cy4) -> 2009-10 | E25: =IF(dms_RPT="financial",dms_fy5,dms_cy5) -> 2010-11 | F25: =IF(dms_RPT="financial",dms_fy6,dms_cy6) -> 2011-12 | G25: =IF(dms_RPT="financial",dms_fy7,dms_cy7) -> 2012-13 | H25: =IF(dms_RPT="financial",dms_fy8,dms_cy8) -> 2013-14 | I25: =IF(dms_RPT="financial",dms_fy9,dms_cy9) -> 2014-15 | J25: =IF(dms_RPT="financial",dms_fy10,dms_cy10) -> 2015-16 | K25: =CRCP_y4 -> 2016-17 | L25: =CRCP_y5 -> 2017-18 | M25: =FRCP_y1 -> 2018-19 | N25: =FRCP_y2 -> 2019-20 | O25: =FRCP_y3 -> 2020-21 | P25: =FRCP_y4 -> 2021-22 | Q25: =FRCP_y5 -> 2022-23
B26: NETWORK OPERATIONS AND MAINTENANCE
B27: Operating and maintenance expenses
B28: Management fees and expenses
B29: OTHER COSTS
B30: Insurance
B31: Tax on property and capital
B32: Accounting/audit fees
B33: Other
B34: Debt raising costs
B35: TOTAL | C35: =SUM(C27:C28,C30:C34) -> 0 | D35: =SUM(D27:D28,D30:D34) -> 0 | E35: 0 | F35: 0 | G35: 0 | H35: 0 | I35: 0 | J35: 0 | K35: 0 | L35: 0 | M35: 0 | N35: 0 | O35: 0 | P35: 0 | Q35: 0

Sheet 2.17 Step Changes
B1: =(LOOKUP(dms_Model,dms_Model_List,dms_Worksheet_List)) -> REGULATORY REPORTING STATEMENT
B2: =INDEX(dms_TradingNameFull_List,MATCH(dms_TradingName,dms_TradingName_List)) -> Murraylink
B3: =IF(SUM(dms_SingleYear_Model)>0,CRY,CONCATENATE(FRCP_y1," to ",dms_MultiYear_FinalYear_Result)) -> 2018-19 to 2022-23
B4: 2.17 STEP CHANGES
B6: Instructions
B7: Complete the Tables below in accordance with the regulatory information notice. The total step changes in Table 2.17.1 must reconcile (in each year) to the total step changes for each year in Table 2.16.1 of worksheet 2.16 Opex Summary.
B9: 2.17.1 - FORECAST OPEX STEP CHANGES
D10: EXPENDITURE
D11: =CONCATENATE("Forecast ($0's, real ", dms_DollarReal, ")") -> Forecast ($0's, real June 2018)
B12: Step change | C12: Description | D12: =CRCP_y4 -> 2016-17 | E12: =CRCP_y5 -> 2017-18 | F12: =FRCP_y1 -> 2018-19 | G12: =FRCP_y2 -> 2019-20 | H12: =FRCP_y3 -> 2020-21 | I12: =FRCP_y4 -> 2021-22 | J12: =FRCP_y5 -> 2022-23
B13: Support Service Contract | C13: It has been proposed that Murray Link enter into a support services agreement. This will enable Murray Link to utilise HVDC Support Services, training APA staff for fault diagnosis & maintenance systems; and corrective services. | D13: 0 | E13: 0 | F13: 172234.6951 | G13: 172234.6951 | H13: 172234.6951 | I13: 172234.6951 | J13: 172234.6951
C28: TOTAL | D28: =SUM(D13:D27) -> 0 | E28: 0 | F28: 172234.6951 | G28: 172234.6951 | H28: 172234.6951 | I28: 172234.6951 | J28: 172234.6951
C29: Check | D29: =IF(D$28-'2.16 Opex'!K$18=0,"OK","Error") -> OK | E29: =IF(E$28-'2.16 Opex'!L$18=0,"OK","Error") -> OK | F29: =IF(F$28-'2.16 Opex'!M$18=0,"OK","Error") -> OK | G29: =IF(G$28-'2.16 Opex'!N$18=0,"OK","Error") -> OK | H29: =IF(H$28-'2.16 Opex'!O$18=0,"OK","Error") -> OK | I29: =IF(I$28-'2.16 Opex'!P$18=0,"OK","Error") -> OK | J29: =IF(J$28-'2.16 Opex'!Q$18=0,"OK","Error") -> OK
B31: 2.17.2 - FORECAST CAPEX STEP CHANGES
D32: EXPENDITURE
D33: =CONCATENATE("Forecast ($0's, real ", dms_DollarReal, ")") -> Forecast ($0's, real June 2018)
B34: Step change | C34: Description | D34: =CRCP_y4 -> 2016-17 | E34: =CRCP_y5 -> 2017-18 | F34: =FRCP_y1 -> 2018-19 | G34: =FRCP_y2 -> 2019-20 | H34: =FRCP_y3 -> 2020-21 | I34: =FRCP_y4 -> 2021-22 | J34: =FRCP_y5 -> 2022-23
B35: N/A
C50: TOTAL | D50: =SUM(D35:D49) -> 0 | E50: 0 | F50: 0 | G50: 0 | H50: 0 | I50: 0 | J50: 0
B53: 2.17.5 - CATEGORY SPECIFIC OPEX
D54: EXPENDITURE
D55: =CONCATENATE("Forecast ($0's, real ", dms_DollarReal, ")") -> Forecast ($0's, real June 2018)
B56: Step change | C56: Description | D56: =CRCP_y4 -> 2016-17 | E56: =CRCP_y5 -> 2017-18 | F56: =FRCP_y1 -> 2018-19 | G56: =FRCP_y2 -> 2019-20 | H56: =FRCP_y3 -> 2020-21 | I56: =FRCP_y4 -> 2021-22 | J56: =FRCP_y5 -> 2022-23
B57: AIR BLAST COOLER MAINTENANCE 10 yrs | C57: This is an every 10 year comprehensive maintenance of parts in the air blast cooler system. The maintainence all the various components is expected to cost $119,668 per decade. | D57: 0 | E57: 0 | F57: 0 | G57: 0 | H57: 0 | I57: 0 | J57: 119668
B58: AIR BLAST COOLER MAINTENANCE 2 yrs | C58: Every two years a comprehensive cleaning is undertaken on the airblast cooler. | D58: 3493.01399 | E58: 0 | F58: 3357.376 | G58: 0 | H58: 3357.376 | I58: 0 | J58: 3357.376
B59: CAPACITIVE VOLTAGE TRANSFORMER MAINTENANCE 5 yrs | C59: 5 year maintenance on the voltage transformer | D59: 0 | E59: 2124.876 | F59: 0 | G59: 0 | H59: 0 | I59: 0 | J59: 2124.876
B60: CIRCUIT BREAKER MAINTENANCE 6 yrs | C60: Maintenance on the Redcliffe Circuit Breaker is performed every 6 years. These are outside and require a comprehensive inspection, cleaning and repair. The work needs to be performed by technical specialists | D60: 0 | E60: 0 | F60: 0 | G60: 0 | H60: 12756.876 | I60: 0 | J60: 0
B61: DIRECT VOLTAGE DIVIDER MAINTENANCE 2 yrs | C61: Maintenance specific to the Direct Voltage Divider spark testing once every 2 years. | D61: 1503.24899 | E61: 0 | F61: 1444.876 | G61: 0 | H61: 1444.876 | I61: 0 | J61: 1444.876
B62: DISCONNECTOR & EARTH SWITCH MAINTENANCE 2 yrs | C62: Specific Disconnector and Earth switch maintenance is performed every 2 years | D62: 17752.21619 | E62: 0 | F62: 17062.876 | G62: 0 | H62: 17062.876 | I62: 0 | J62: 17062.876
B63: MOTORISED OPERATING MECHANISM MAINTENANCE 6 yrs | C63: Maintenance is performed every 6 years | D63: 0 | E63: 0 | F63: 0 | G63: 0 | H63: 3814.876 | I63: 0 | J63: 0
B64: NITROGEN DISCHARGE UNIT MAINTENANCE 3 yrs | C64: Replacement of hoses on the nitrogen discharge unit. | D64: 0 | E64: 1307.151 | F64: 0 | G64: 0 | H64: 1307.151 | I64: 0 | J64: 0
B65: OIL FILLED CAPACITOR MAINTENANCE 3 yrs | C65: The capacitor banks capacitance should be measured every 3 years. | D65: 0 | E65: 7323.566667 | F65: 0 | G65: 0 | H65: 7323.566667 | I65: 0 | J65: 0
B66: OUTDOOR POST TYPE CURRENT TRANSFORMER 5 yrs | C66: The transformers resin surface needs to be cleaned and re-coated with a silicone resin. | D66: 0 | E66: 4714.876 | F66: 0 | G66: 0 | H66: 0 | I66: 0 | J66: 4714.876
B67: PLC FILTER TUNING UNIT MAINTENANCE 5 yrs | C67: A detailed inspection of the PLC filter tuning unit is required every 5 years | D67: 0 | E67: 8070.378 | F67: 0 | G67: 0 | H67: 0 | I67: 0 | J67: 8070.378
B68: UNINTERRUPTIBLE POWER SUPPLY 5 yrs | C68: Repairing and maintaining the cooling fans. | D68: 0 | E68: 14021.266 | F68: 0 | G68: 0 | H68: 0 | I68: 0 | J68: 14021.266
B69: VALVE COOLING SYSTEM MAINTENANCE 2 yrs | C69: Standard two year maintenance. | D69: 104.3011404 | E69: 0 | F69: 100.251 | G69: 0 | H69: 100.251 | I69: 0 | J69: 100.251
B70: VALVE COOLING SYSTEM MAINTENANCE 5 yrs | C70: The ion exchange vessels need to be dismantled and cleaned every 5 years. | D70: 0 | E70: 170 | F70: 0 | G70: 0 | H70: 0 | I70: 0 | J70: 170
C72: TOTAL | D72: =SUM(D57:D71) -> 22852.78031 | E72: 37732.11367 | F72: 21965.379 | G72: 0 | H72: 47167.84867 | I72: 0 | J72: 170734.775

Sheet 3.2.3 Provisions
B1: REGULATORY REPORTING STATEMENT
B2: =INDEX(dms_TradingNameFull_List,MATCH(dms_TradingName,dms_TradingName_List)) -> Murraylink
B3: =CONCATENATE("ECONOMIC BENCHMARKING ",IF(SUM(dms_SingleYear_Model)>0,CRY,CONCATENATE(dms_CRCP_FirstYear_Result," to ",dms_CRCP_FinalYear_Result))) -> ECONOMIC BENCHMARKING 2013-14 to 2017-18
B4: 3.2 OPERATING EXPENDITURE
B6: The is ONE table on this worksheet. Each Provision has been grouped for ease of navigation. See the Instructions sheet on how to group and ungroup tables.
B7: Please note:
B8: Murraylink does not have any provisions in its historic or forecast capital expenditure or operating expenditure, refer to section 4.3.1 of Proposal.
B9: 3.2.3 - PROVISIONS
C10: $0's
C11: =IF(dms_RPT="financial",dms_fy4,dms_cy4) -> 2008-09 | D11: =IF(dms_RPT="financial",dms_fy5,dms_cy5) -> 2009-10 | E11: =IF(dms_RPT="financial",dms_fy6,dms_cy6) -> 2010-11 | F11: =IF(dms_RPT="financial",dms_fy7,dms_cy7) -> 2011-12 | G11: =IF(dms_RPT="financial",dms_fy8,dms_cy8) -> 2012-13 | H11: =IF(dms_RPT="financial",dms_fy9,dms_cy9) -> 2013-14 | I11: =IF(dms_RPT="financial",dms_fy10,dms_cy10) -> 2014-15 | J11: =IF(dms_RPT="financial",dms_fy11,dms_cy11) -> 2015-16
A12: TOPEX03A | B12: Provision name
B13: N/A
A14: TOPEX0301A | B14: Opening balance (the carrying amount at the beginning of the period)
B15: Additional provisions made in the period, including increases to existing provisions
A16: TOPEX0302A | B16: Opex component
A17: TOPEX0303A | B17: Capex component
A18: TOPEX0304A | B18: Other component
B19: Amounts used (that is, incurred and charged against the provision) during the period
A20: TOPEX0305A | B20: Opex component
A21: TOPEX0306A | B21: Capex component
A22: TOPEX0307A | B22: Other component
B23: Unused amounts reversed during the period
A24: TOPEX0308A | B24: Opex component
A25: TOPEX0309A | B25: Capex component
A26: TOPEX0310A | B26: Other component
B27: The increase during the period in the discounted amount arising from the passage of time and the effect of any change in the discount rate
A28: TOPEX0311A | B28: Opex component
A29: TOPEX0312A | B29: Capex component
A30: TOPEX0313A | B30: Other component
A31: TOPEX0314A | B31: Closing balance (carrying amount at the end of the period)
A32: TOPEX03B | B32: Provision name
B33: Brief description of provision
A34: TOPEX0301B | B34: Opening balance (the carrying amount at the beginning of the period)
B35: Additional provisions made in the period, including increases to existing provisions
A36: TOPEX0302B | B36: Opex component
A37: TOPEX0303B | B37: Capex component
A38: TOPEX0304B | B38: Other component
B39: Amounts used (that is, incurred and charged against the provision) during the period
A40: TOPEX0305B | B40: Opex component
A41: TOPEX0306B | B41: Capex component
A42: TOPEX0307B | B42: Other component
B43: Unused amounts reversed during the period
A44: TOPEX0308B | B44: Opex component
A45: TOPEX0309B | B45: Capex component
A46: TOPEX0310B | B46: Other component
B47: The increase during the period in the discounted amount arising from the passage of time and the effect of any change in the discount rate
A48: TOPEX0311B | B48: Opex component
A49: TOPEX0312B | B49: Capex component
A50: TOPEX0313B | B50: Other component
A51: TOPEX0314B | B51: Closing balance (carrying amount at the end of the period)
A52: TOPEX03C | B52: Provision name
B53: Brief description of provision
A54: TOPEX0301C | B54: Opening balance (the carrying amount at the beginning of the period)
B55: Additional provisions made in the period, including increases to existing provisions
A56: TOPEX0302C | B56: Opex component
A57: TOPEX0303C | B57: Capex component
A58: TOPEX0304C | B58: Other component
B59: Amounts used (that is, incurred and charged against the provision) during the period
A60: TOPEX0305C | B60: Opex component
A61: TOPEX0306C | B61: Capex component
A62: TOPEX0307C | B62: Other component
B63: Unused amounts reversed during the period
A64: TOPEX0308C | B64: Opex component
A65: TOPEX0309C | B65: Capex component
A66: TOPEX0310C | B66: Other component
B67: The increase during the period in the discounted amount arising from the passage of time and the effect of any change in the discount rate
A68: TOPEX0311C | B68: Opex component
A69: TOPEX0312C | B69: Capex component
A70: TOPEX0313C | B70: Other component
A71: TOPEX0314C | B71: Closing balance (carrying amount at the end of the period)
A72: TOPEX03D | B72: Provision name
B73: Brief description of provision
A74: TOPEX0301D | B74: Opening balance (the carrying amount at the beginning of the period)
B75: Additional provisions made in the period, including increases to existing provisions
A76: TOPEX0302D | B76: Opex component
A77: TOPEX0303D | B77: Capex component
A78: TOPEX0304D | B78: Other component
B79: Amounts used (that is, incurred and charged against the provision) during the period
A80: TOPEX0305D | B80: Opex component
A81: TOPEX0306D | B81: Capex component
A82: TOPEX0307D | B82: Other component
B83: Unused amounts reversed during the period
A84: TOPEX0308D | B84: Opex component
A85: TOPEX0309D | B85: Capex component
A86: TOPEX0310D | B86: Other component
B87: The increase during the period in the discounted amount arising from the passage of time and the effect of any change in the discount rate
A88: TOPEX0311D | B88: Opex component
A89: TOPEX0312D | B89: Capex component
A90: TOPEX0313D | B90: Other component
A91: TOPEX0314D | B91: Closing balance (carrying amount at the end of the period)
A92: TOPEX03E | B92: Provision name
B93: Brief description of provision
A94: TOPEX0301E | B94: Opening balance (the carrying amount at the beginning of the period)
B95: Additional provisions made in the period, including increases to existing provisions
A96: TOPEX0302E | B96: Opex component
A97: TOPEX0303E | B97: Capex component
A98: TOPEX0304E | B98: Other component
B99: Amounts used (that is, incurred and charged against the provision) during the period
A100: TOPEX0305E | B100: Opex component
A101: TOPEX0306E | B101: Capex component
A102: TOPEX0307E | B102: Other component
B103: Unused amounts reversed during the period
A104: TOPEX0308E | B104: Opex component
A105: TOPEX0309E | B105: Capex component
A106: TOPEX0310E | B106: Other component
B107: The increase during the period in the discounted amount arising from the passage of time and the effect of any change in the discount rate
A108: TOPEX0311E | B108: Opex component
A109: TOPEX0312E | B109: Capex component
A110: TOPEX0313E | B110: Other component
A111: TOPEX0314E | B111: Closing balance (carrying amount at the end of the period)
A112: TOPEX03F | B112: Provision name
B113: Brief description of provision
A114: TOPEX0301F | B114: Opening balance (the carrying amount at the beginning of the period)
B115: Additional provisions made in the period, including increases to existing provisions
A116: TOPEX0302F | B116: Opex component
A117: TOPEX0303F | B117: Capex component
A118: TOPEX0304F | B118: Other component
B119: Amounts used (that is, incurred and charged against the provision) during the period
A120: TOPEX0305F | B120: Opex component
A121: TOPEX0306F | B121: Capex component
A122: TOPEX0307F | B122: Other component
B123: Unused amounts reversed during the period
A124: TOPEX0308F | B124: Opex component
A125: TOPEX0309F | B125: Capex component
A126: TOPEX0310F | B126: Other component
B127: The increase during the period in the discounted amount arising from the passage of time and the effect of any change in the discount rate
A128: TOPEX0311F | B128: Opex component
A129: TOPEX0312F | B129: Capex component
A130: TOPEX0313F | B130: Other component
A131: TOPEX0314F | B131: Closing balance (carrying amount at the end of the period)
A132: TOPEX03G | B132: Provision name
B133: Brief description of provision
A134: TOPEX0301G | B134: Opening balance (the carrying amount at the beginning of the period)
B135: Additional provisions made in the period, including increases to existing provisions
A136: TOPEX0302G | B136: Opex component
A137: TOPEX0303G | B137: Capex component
A138: TOPEX0304G | B138: Other component
B139: Amounts used (that is, incurred and charged against the provision) during the period
A140: TOPEX0305G | B140: Opex component
A141: TOPEX0306G | B141: Capex component
A142: TOPEX0307G | B142: Other component
B143: Unused amounts reversed during the period
A144: TOPEX0308G | B144: Opex component
A145: TOPEX0309G | B145: Capex component
A146: TOPEX0310G | B146: Other component
B147: The increase during the period in the discounted amount arising from the passage of time and the effect of any change in the discount rate
A148: TOPEX0311G | B148: Opex component
A149: TOPEX0312G | B149: Capex component
A150: TOPEX0313G | B150: Other component
A151: TOPEX0314G | B151: Closing balance (carrying amount at the end of the period)
A152: TOPEX03H | B152: Provision name
B153: Brief description of provision
A154: TOPEX0301H | B154: Opening balance (the carrying amount at the beginning of the period)
B155: Additional provisions made in the period, including increases to existing provisions
A156: TOPEX0302H | B156: Opex component
A157: TOPEX0303H | B157: Capex component
A158: TOPEX0304H | B158: Other component
B159: Amounts used (that is, incurred and charged against the provision) during the period
A160: TOPEX0305H | B160: Opex component
A161: TOPEX0306H | B161: Capex component
A162: TOPEX0307H | B162: Other component
B163: Unused amounts reversed during the period
A164: TOPEX0308H | B164: Opex component
A165: TOPEX0309H | B165: Capex component
A166: TOPEX0310H | B166: Other component
B167: The increase during the period in the discounted amount arising from the passage of time and the effect of any change in the discount rate
A168: TOPEX0311H | B168: Opex component
A169: TOPEX0312H | B169: Capex component
A170: TOPEX0313H | B170: Other component
A171: TOPEX0314H | B171: Closing balance (carrying amount at the end of the period)
A172: TOPEX03I | B172: Provision name
B173: Brief description of provision
A174: TOPEX0301I | B174: Opening balance (the carrying amount at the beginning of the period)
B175: Additional provisions made in the period, including increases to existing provisions
A176: TOPEX0302I | B176: Opex component
A177: TOPEX0303I | B177: Capex component
A178: TOPEX0304I | B178: Other component
B179: Amounts used (that is, incurred and charged against the provision) during the period
A180: TOPEX0305I | B180: Opex component
A181: TOPEX0306I | B181: Capex component
A182: TOPEX0307I | B182: Other component
B183: Unused amounts reversed during the period
A184: TOPEX0308I | B184: Opex component
A185: TOPEX0309I | B185: Capex component
A186: TOPEX0310I | B186: Other component
B187: The increase during the period in the discounted amount arising from the passage of time and the effect of any change in the discount rate
A188: TOPEX0311I | B188: Opex component
A189: TOPEX0312I | B189: Capex component
A190: TOPEX0313I | B190: Other component
A191: TOPEX0314I | B191: Closing balance (carrying amount at the end of the period)
A192: TOPEX03J | B192: Provision name
B193: Brief description of provision
A194: TOPEX0301J | B194: Opening balance (the carrying amount at the beginning of the period)
B195: Additional provisions made in the period, including increases to existing provisions
A196: TOPEX0302J | B196: Opex component
A197: TOPEX0303J | B197: Capex component
A198: TOPEX0304J | B198: Other component
B199: Amounts used (that is, incurred and charged against the provision) during the period
A200: TOPEX0305J | B200: Opex component
A201: TOPEX0306J | B201: Capex component
... 170 more rows

Sheet 7.1 Policies and Procedures
B1: =(LOOKUP(dms_Model,dms_Model_List,dms_Worksheet_List)) -> REGULATORY REPORTING STATEMENT
B2: =INDEX(dms_TradingNameFull_List,MATCH(dms_TradingName,dms_TradingName_List)) -> Murraylink
B3: =IF(SUM(dms_SingleYear_Model)>0,CRY,CONCATENATE(FRCP_y1," to ",dms_MultiYear_FinalYear_Result)) -> 2018-19 to 2022-23
B4: 7.1 PLANS, POLICIES, PROCEDURES AND STRATEGIES
B6: Instructions
B7: =CONCATENATE(dms_TradingName, " must list and provide a brief description of key internal plans, "&"policies, procedures or strategies that are used by it to plan and conduct its day to day operations and that have been relied upon in the development of its regulatory proposal. "&dms_TradingName," must identify any internal plans, policies, procedures and strategies that have changed in the current regulatory control period "&"or that are expected to change before the next regulatory control period where the change has been identified as a step change.") -> Murraylink must list and provide a brief description of key internal plans, policies, procedures or strategies that are used by it to plan and conduct its day to day operations and that have been relied upon in the development of its regulatory proposal. Murraylink must identify any internal plans, policies, procedures and strategies that have changed in the current regulatory control period or that are expected to change before the next regulatory control period where the change has been identified as a step change.
B11: 7.1.1 - PLANS, POLICIES, PROCEDURES AND STRATEGIES
C12: Brief description | D12: Relevance to regulatory proposal | E12: Expenditure impact
C13: Description of the plan, policy, procedure or strategy. | D13: Identify the element of the proposal/supporting documents that the policy, plan, procedure or strategy is relevant to e.g. replacement capex, capacity utilisation thresholds, opex | E13: Is this policy, plan or procedure identified in the response to section 4 'Step Changes' of the notice (yes or no)?
B14: Corporate
B18: Governance framework
B36: Accounting policies, procedures and methodologies (including a capitalisation policy, depreciation policy and an approved expenditure allocation methodology)
B40: Asset management plan or equivalent documentation
B41: Asset Management Policies
B43: Accounting policy - Property, Plant & Equipment | C43: Describes the Accounting Treatment of items of Property, plants & Equipment. | D43: Includes definitions of Assets, the Recognition criteria oto capitalise assets and the treatmetn of subsequent costs. | E43: no
B44: Cost Allocation Methodology | C44: Describes the accounting treatment to allocate costs to different activities and categories | D44: Includes accounting methodlogies and impacts capital expedniture and operating expenditure | E44: no
B45: Asset Management Strategies
B50: Asset Management Plans
B52: ML-DO-06 Murraylink Asset Management Plan | C52: Translates Murraylink’s strategic goals and objectives, the requirements of stakeholders, and the technical and practical requirements of the assets into programmes of work and plans of action to meet these requirements. | D52: Sets out the rationale for the operations, maintenance and captial expenditure requested in the revenue proposal. | E52: no
B74: Capital expenditure policies and procedures (including capex approval policies and procedures and replacement policy)
B79: Internal standards for network planning, design, maintenance and operation
B81: Murraylink Interconnector Safety, Reliability, Maintenance and Technical Management Plan Revision – 13 | C81: Provides a description of the policies and practices with respect to the safety and technical management of the the Murraylink DC Interconnection between South Australia and Victoria. | D81: Sets out the activities undertaken to ensure Murraylink complies with relevant legislation.
B159: Procurement and contracting out policies
B160: APA Group Procurement Policy | C160: Describes the process for undertaking procurement for APA group entities including APA operations Murraylink Pty Ltd | D160: Capex and Opex | E160: no
B164: Information technology policies or strategies
B165: APA Group IT Security Policy | C165: Outlines the Framework of Policy, Standards and Procedures required to manage information security within APA. | D165: Supports for capex and opex requirements | E165: no
B166: APA Group IT Acceptable Use Policy | C166: Defines the acceptable and unacceptable use of APA Group’s Information Technology systems and equipment. | D166: Supports for capex and opex requirements | E166: no
B201: Demand management policies or strategies
B205: Self insurance guidelines or policy
B210: Land and easement acquisition polices
B215: Asset security plans and policies
B226: Disaster recovery policy
B227: Emergency Response Plan ML–OP–23. | C227: Sets out the procedures and resources to be deployed by APA Group personnel in the event of an incident at Murraylink. | D227: Supports for capex and opex requirements | E227: no

Sheet 7.2 Contingent projects
B1: =(LOOKUP(dms_Model,dms_Model_List,dms_Worksheet_List)) -> REGULATORY REPORTING STATEMENT
B2: =INDEX(dms_TradingNameFull_List,MATCH(dms_TradingName,dms_TradingName_List)) -> Murraylink
B3: =IF(SUM(dms_SingleYear_Model)>0,CRY,CONCATENATE(FRCP_y1," to ",dms_MultiYear_FinalYear_Result)) -> 2018-19 to 2022-23
B4: 7.2 CONTINGENT PROJECTS
B7: Instructions
B8: =CONCATENATE(dms_TradingName," is required to populate all input cells (yellow) in table 7.2.1 presented below. Additional rows may be added by ",dms_TradingName," if required." ) -> Murraylink is required to populate all input cells (yellow) in table 7.2.1 presented below. Additional rows may be added by Murraylink if required.
B10: 7.2.1 - PROPOSED CONTINGENT PROJECTS FOR THE FORTHCOMING REGULATORY CONTROL PERIOD
B11: Proposed contingent project name | C11: Proposed contingent capital expenditure ($0's, nominal) | D11: Proposed trigger events | E11: =CONCATENATE("Proposed MAR for ", FRCP_y1," ($0's, nominal)") -> Proposed MAR for 2018-19 ($0's, nominal) | F11: =CONCATENATE("5 per cent of the ", FRCP_y1," ($0's, nominal) MAR") -> 5 per cent of the 2018-19 ($0's, nominal) MAR
B12: Murraylink augmentation | C12: 994000000 | D12: - Successful RIT-T - Approval by EII management | E12: 16996725.37 | F12: =+E12*0.05 -> 849836.2686
E13: =+$E$12 -> 16996725.37 | F13: =+E13*0.05 -> 849836.2686
E14: =+$E$12 -> 16996725.37 | F14: 849836.2686
E15: 16996725.37 | F15: 849836.2686
E16: 16996725.37 | F16: 849836.2686
E17: 16996725.37 | F17: 849836.2686
E18: 16996725.37 | F18: 849836.2686
E19: 16996725.37 | F19: 849836.2686
E20: 16996725.37 | F20: 849836.2686
E21: 16996725.37 | F21: 849836.2686
E22: 16996725.37 | F22: 849836.2686
E23: 16996725.37 | F23: 849836.2686
E24: 16996725.37 | F24: 849836.2686
E25: 16996725.37 | F25: 849836.2686
E26: 16996725.37 | F26: 849836.2686
E27: 16996725.37 | F27: 849836.2686
E28: 16996725.37 | F28: 849836.2686
E29: 16996725.37 | F29: 849836.2686
E30: 16996725.37 | F30: 849836.2686
E31: 16996725.37 | F31: 849836.2686

Sheet 7.3 Obligations
B1: =(LOOKUP(dms_Model,dms_Model_List,dms_Worksheet_List)) -> REGULATORY REPORTING STATEMENT
B2: =INDEX(dms_TradingNameFull_List,MATCH(dms_TradingName,dms_TradingName_List)) -> Murraylink
B3: =IF(SUM(dms_SingleYear_Model)>0,CRY,CONCATENATE(FRCP_y1," to ",dms_MultiYear_FinalYear_Result)) -> 2018-19 to 2022-23
B4: 7.3 OBLIGATIONS, REQUIREMENTS & STANDARDS
B6: There is ONE table on this worksheet. It has been sub-grouped for ease of navigation. See the Instructions sheet on how to group or ungroup data.
B8: Instructions
B9: =CONCATENATE("Outline those obligations and requirements that ",dms_TradingName, " identifies as having a material impact on expenditure requirements.") -> Outline those obligations and requirements that Murraylink identifies as having a material impact on expenditure requirements.
B12: 7.3.1 - OBLIGATIONS OR REQUIREMENTS
C13: Brief description | D13: Relevance to regulatory proposal | E13: Expenditure impact
C14: Description of relevant obligations or requirements within the instrument (e.g. safety obligations, reliability targets) | D14: Identify what element of the proposal/supporting documents the obligation or requirement is relevant to e.g. replacement capex, capacity utilisation thresholds, opex | E14: Is the obligation or requirement identified in the response to section 4 'Step Changes' of the notice (yes or no)?
B15: Legislation
B16: National Electricity Law | C16: Sets out the obligations of Transmission Networks in relation to eonomic regulation | D16: Sets out the basis for the regulatory proposal | E16: No
B17: South Australian Electricity Act 1996 | C17: Technial compliance obligations for the operation of Murraylink | D17: Supports for capex and opex requirements | E17: No
B19: Victorian Electricity Industry Act 2000 | C19: Technial compliance obligations for the operation of Murraylink | D19: Supports for capex and opex requirements | E19: No
B20: Victorian Electricity Safety Act 1998 | C20: Technial compliance obligations for the operation of Murraylink | E20: No
B227: Licences
B228: South Australian Transmission License - Murraylink Transmission Company 22 July 2008 | C228: Technial compliance obligations for the operation of Murraylink | D228: Supports for capex and opex requirements | E228: No
B229: Murraylink Exemption from holding a Victorian transmission licence. Order in Council 3 February 2004. | C229: Technial compliance obligations for the operation of Murraylink | D229: Supports for capex and opex requirements | E229: No
B232: Rules
B233: National Electricity Rules | C233: Sets out the obligations of Transmission Networks in relation to eonomic regulation | D233: Sets out the basis for and contents of the revenue proposal | E233: No
B234: South Australian Electricity (General) Regulations 2012 under the Electricity Act 1996 | C234: Technial compliance obligations for the operation of Murraylink | D234: Supports for capex and opex requirements | E234: No
B235: Electricity Safety (Installations) Regulations 2009 | C235: Technial compliance obligations for the operation of Murraylink | D235: Supports for capex and opex requirements | E235: No
B236: Electricity Safety (Management) Regulations 2009 | C236: Technial compliance obligations for the operation of Murraylink | D236: Supports for capex and opex requirements | E236: No
B237: Orders
B241: Codes
B242: South Australian Electricity Transmission Code Issue No. 9, 15 September 2016 | C242: Technial compliance obligations for the operation of Murraylink | D242: Supports for capex and opex requirements | E242: No
B243: South Australian Switching Manual Revision 3 August 2012 | C243: Technial compliance obligations for the operation of Murraylink | D243: Supports for capex and opex requirements | E243: No
B257: Guidelines
B258: AER Information Guideline (Version 2) | C258: The Electricity Transmission Network Service Providers Information Guideline (Information Guideline) sets out the information that a transmission business must include in its annual statement to the Australian Energy Regulator. | D258: Set out guidance on annual information supplied by Murraylink which is the information provided in the RIN | E258: No
B259: AER Pricing methodology guidelines | C259: transmission network service providers are required to submit to the AER a proposed pricing methodology relating to prescribed transmission services which are subject to a transmission determination. The AER is required to assess whether the proposed pricing methodology is consistent with the pricing principles for prescribed transmission services outlined in rule 6A.23 of the NER and the AER’s pricing methodology guidelines. | D259: Sets out basis for pricing methodology contained in attachment 12.2 | E259: No
B260: AER Expenditure forecast assessment guideline | C260: The Guideline specifies the information the AER use to assess expenditure. In order to collect the information specified in the Guideline, the AER has undertaken development of Regulatory Information Notices (RINs). | D260: Basis of forecast assessment | E260: No
B261: AER Rate of return guideline | C261: The rate of return guideline sets out how the AER determine the return that electricity and gas network businesses can earn on their investments. | D261: Used in forecasting aspects of the rate of return | E261: No
B262: AER Expenditure incentives guideline | C262: The capital expenditure incentives guideline and efficiency benefit sharing scheme give electricity network businesses incentives to spend efficiently and share the benefits of efficiencies with consumers. | D262: Used for the EBSS and STPIS | E262: No
B263: AER Confidentiality guideline | C263: The confidentiality guideline sets out how energy network businesses must make confidentiality claims over information they submit to the AER | D263: Used for confidentiality aspects of the submission | E263: No
B264: AER Consumer engagement guideline for network service providers | C264: The guideline provides best practice principles and a framework for electricity and gas network service providers to better engage with their consumers. | D264: Used as a guide in relation to consumer engagement | E264: No
B265: AER Regulatory investment test for transmission | C265: A set of guidelines for the application of the RIT-T | D265: Used as a basis for identifiying possible contingent projects | E265: No
B266: AER Cost allocation guideline (transmission) | C266: AER guideline in the relation to creation and application of cost allocation methodologies | D266: Relevant to the Cost Allocation Methodology | E266: No
B267: South Australian ELECTRICITY REGULATORY INFORMATION REQUIREMENTS - TRANSMISSION AND SYSTEM CONTROL Electricity Industry Guideline No. 3 (EG3/06) | C267: Details the nature of information that is required to monitor a Licensee’s performance; and outlines a mechanism by which this and any other information may be collected. | D267: Supports for capex and opex requirements | E267: No
B268: South Australian COMPLIANCE SYSTEMS AND REPORTING ENERGY INDUSTRY GUIDELINE NO. 4 (EG4/4) | C268: Specify requirements for licensees in relation to: the establishment and maintenance of appropriate and robust compliance systems and processes; the reporting of information to the Commission; and operational and compliance audits in respect of the operations carried out by licensees under the authority of their licences. | D268: Supports for capex and opex requirements | E268: No
B296: Default agreements
B301: Other

Sheet 7.4 Shared Assets
B1: =(LOOKUP(dms_Model,dms_Model_List,dms_Worksheet_List)) -> REGULATORY REPORTING STATEMENT
B2: =INDEX(dms_TradingNameFull_List,MATCH(dms_TradingName,dms_TradingName_List)) -> Murraylink
B3: =IF(SUM(dms_SingleYear_Model)>0,CRY,CONCATENATE(FRCP_y1," to ",dms_MultiYear_FinalYear_Result)) -> 2018-19 to 2022-23
B4: 7.4 SHARED ASSETS
B6: 7.4.1 - TOTAL UNREGULATED REVENUE EARNED WITH SHARED ASSETS
B7: Name of shared asset unregulated service | C7: Description of shared assets used to provide the service | D7: Shared asset unregulated revenue ($0's, nominal) | L7: =CONCATENATE("Shared asset unregulated revenue ($0's, real ", dms_DollarReal,")") -> Shared asset unregulated revenue ($0's, real June 2018)
D8: =PRCP_y1 -> 2008-09 | E8: =PRCP_y2 -> 2009-10 | F8: =PRCP_y3 -> 2010-11 | G8: =PRCP_y4 -> 2011-12 | H8: =PRCP_y5 -> 2012-13 | I8: =CRCP_y1 -> 2013-14 | J8: =CRCP_y2 -> 2014-15 | K8: =CRCP_y3 -> 2015-16 | L8: =CRCP_y4 -> 2016-17 | M8: =CRCP_y5 -> 2017-18 | N8: =FRCP_y1 -> 2018-19 | O8: =FRCP_y2 -> 2019-20 | P8: =FRCP_y3 -> 2020-21 | Q8: =FRCP_y4 -> 2021-22 | R8: =FRCP_y5 -> 2022-23 | S8: =CONCATENATE("Total ",FRCP_y1, "-", FRCP_y5) -> Total 2018-19-2022-23
B9: N/A | S9: =SUM(N9:R9) -> 0
S10: =SUM(N10:R10) -> 0
S11: 0
S12: 0
S13: 0
S14: 0
S15: 0
S16: 0
S17: 0
S18: 0
S19: 0
S20: =SUM(N20:R20) -> 0
S21: =SUM(N21:R21) -> 0
S22: =SUM(N22:R22) -> 0
S23: =SUM(N23:R23) -> 0
B25: 7.4.2 - SHARED ASSET UNREGULATED SERVICES - APPORTIONMENT METHODOLOGY
B26: Name of shared asset unregulated service for which revenues were apportioned | C26: Apportionment methodology
B27: N/A

Sheet 7.5 EBSS
B1: =(LOOKUP(dms_Model,dms_Model_List,dms_Worksheet_List)) -> REGULATORY REPORTING STATEMENT
B2: =INDEX(dms_TradingNameFull_List,MATCH(dms_TradingName,dms_TradingName_List)) -> Murraylink
B3: =IF(SUM(dms_SingleYear_Model)>0,CRY,CONCATENATE(FRCP_y1," to ",dms_MultiYear_FinalYear_Result)) -> 2018-19 to 2022-23
B4: 7.5 EBSS
B7: Instructions
B8: =CONCATENATE(dms_TradingName, " is required to populate all input cells (yellow) in table 7.5.2 presented below.") -> Murraylink is required to populate all input cells (yellow) in table 7.5.2 presented below.
B9: Efficiency gains are calculated using the formulae below. Adjusted target and actual amounts are used to calculate the carry-over amounts. We will calculate the efficiency gain in 2012–13 (year 6) as follows: E6 = (F6 – A6) – (F5 – A5) + (F3 – A3) where F6 is the forecast opex we approved for year 6 (2012-13), and A6 is the actual opex incurred for year 6, and so on. The formula references year 3 (2010-11) because it is the base year used to forecast opex. Actual opex in 2017-18 should be set so that any incremental efficiency gains made after the base year sum to zero.
B12: CPI
C13: 2007-08 | D13: =PRCP_y1 -> 2008-09 | E13: =PRCP_y2 -> 2009-10 | F13: =PRCP_y3 -> 2010-11 | G13: =PRCP_y4 -> 2011-12 | H13: =PRCP_y5 -> 2012-13 | I13: =CRCP_y1 -> 2013-14 | J13: =CRCP_y2 -> 2014-15 | K13: =CRCP_y3 -> 2015-16 | L13: =CRCP_y4 -> 2016-17 | M13: =CRCP_y5 -> 2017-18
B14: ABS CPI index Jun qtr (old base) | C14: 157.5 | D14: 164.6 | E14: 167 | F14: 172.1 | G14: 178.3
B15: ABS CPI index Jun qtr (rebased index) | F15: 95.8 | G15: 99.2 | H15: 100.4 | I15: 102.8 | J15: 105.9 | K15: 107.5 | L15: 109.65 | M15: 112.39125
B16: Inflation rate (per cent) | D16: =D14/C14-1 -> 0.04507936508 | E16: 0.01458080194 | F16: 0.03053892216 | G16: =G14/F14-1 -> 0.03602556653 | H16: =H15/G15-1 -> 0.01209677419 | I16: 0.02390438247 | J16: 0.03015564202 | K16: 0.01510859301 | L16: 0.02 | M16: 0.025
B17: Reconstructed cumulative index (2015=1) | C17: =D17/(1+D16) -> 0.7796656229 | D17: 0.8148124542 | E17: 0.8266930732 | F17: 0.8519393886 | G17: 0.8826309877 | H17: 0.8933079755 | I17: 0.914661951 | J17: 0.9422441694 | K17: 0.956480153 | L17: 0.9756097561 | M17: 1
B21: 7.5.1 - The carryover amounts that arise from applying the EBSS during the current regulatory control period
B22: 7.5.1.1 - Opex allowance applicable to EBSS (EBSS target)
C23: $m, real Jun 2008 | G23: $m, real Jun 2013 | M23: =CONCATENATE("$m, real ",dms_DollarReal) -> $m, real June 2018
C24: Previous period | G24: Current regulatory control period | M24: Previous period | Q24: Current regulatory control period
C25: =PRCP_y2 -> 2009-10 | D25: =PRCP_y3 -> 2010-11 | E25: =PRCP_y4 -> 2011-12 | F25: =PRCP_y5 -> 2012-13 | G25: =CRCP_y1 -> 2013-14 | H25: =CRCP_y2 -> 2014-15 | I25: =CRCP_y3 -> 2015-16 | J25: =CRCP_y4 -> 2016-17 | K25: =CRCP_y5 -> 2017-18 | M25: =PRCP_y2 -> 2009-10 | N25: =PRCP_y3 -> 2010-11 | O25: =PRCP_y4 -> 2011-12 | P25: =PRCP_y5 -> 2012-13 | Q25: =CRCP_y1 -> 2013-14 | R25: =CRCP_y2 -> 2014-15 | S25: =CRCP_y3 -> 2015-16 | T25: =CRCP_y4 -> 2016-17 | U25: =CRCP_y5 -> 2017-18
B26: Total opex allowance | G26: 3.697297189 | H26: 3.729748545 | I26: 3.760728096 | J26: 3.788926709 | K26: 3.994154167 | N26: =+D26/$C$17 -> 0 | O26: 0 | P26: 0 | Q26: =+G26/$H$17 -> 4.138882995 | R26: =+H26/$H$17 -> 4.175210171 | S26: 4.209889757 | T26: 4.241456265 | U26: 4.471195015
B27: Approved excludable costs - allowance
B28: Debt raising costs | N28: =+D28/$C$17 -> 0 | O28: 0 | P28: 0 | Q28: =+G28/$H$17 -> 0 | R28: =+H28/$H$17 -> 0 | S28: 0 | T28: 0 | U28: 0
B29: Connection charges | G29: -0.9894278108 | H29: -1.007732225 | I29: -1.026375272 | J29: -1.045363214 | K29: -1.064702434 | N29: 0 | O29: 0 | P29: 0 | Q29: =+G29/$H$17 -> -1.107599885 | R29: -1.128090483 | S29: -1.148960157 | T29: -1.17021592 | U29: -1.191864914
B30: Capitalisation policy changes | N30: 0 | O30: 0 | P30: 0 | Q30: 0 | R30: 0 | S30: 0 | T30: 0 | U30: 0
B31: Opex associated with pass throughs | N31: 0 | O31: 0 | P31: 0 | Q31: 0 | R31: 0 | S31: 0 | T31: 0 | U31: 0
B32: Other adjustments or exclusions required by the EBSS | N32: 0 | O32: 0 | P32: 0 | Q32: 0 | R32: 0 | S32: 0 | T32: 0 | U32: 0
B33: Forecast opex for EBSS purposes | C33: =(C26+SUM(C28:C32)) -> 0 | D33: 0 | E33: 0 | F33: 0 | G33: 2.707869378 | H33: 2.72201632 | I33: 2.734352825 | J33: 2.743563495 | K33: 2.929451733 | M33: =+SUM(M26:M32) -> 0 | N33: 0 | O33: 0 | P33: 0 | Q33: 3.03128311 | R33: 3.047119689 | S33: 3.0609296 | T33: 3.071240346 | U33: 3.279330101
B35: 7.5.1.2 - Actual and estimated opex applicable to EBSS
C36: $m, Actual | M36: =CONCATENATE("$m, real ",dms_DollarReal) -> $m, real June 2018
C37: Previous period | G37: Current regulatory control period | M37: Previous period | Q37: Current regulatory control period
C38: =PRCP_y2 -> 2009-10 | D38: =PRCP_y3 -> 2010-11 | E38: =PRCP_y4 -> 2011-12 | F38: =PRCP_y5 -> 2012-13 | G38: =CRCP_y1 -> 2013-14 | H38: =CRCP_y2 -> 2014-15 | I38: =CRCP_y3 -> 2015-16 | J38: =CRCP_y4 -> 2016-17 | K38: =CRCP_y5 -> 2017-18 | M38: =PRCP_y2 -> 2009-10 | N38: =PRCP_y3 -> 2010-11 | O38: =PRCP_y4 -> 2011-12 | P38: =PRCP_y5 -> 2012-13 | Q38: =CRCP_y1 -> 2013-14 | R38: =CRCP_y2 -> 2014-15 | S38: =CRCP_y3 -> 2015-16 | T38: =CRCP_y4 -> 2016-17 | U38: =CRCP_y5 -> 2017-18
B39: Total opex | G39: 3.68147524 | H39: 4.45299291 | I39: 4.02613892 | J39: 4.74527327 | N39: =+D39/F$17*(1+F$16)^0.5 -> 0 | O39: 0 | P39: 0 | Q39: =+G39/I$17*(1+I$16)^0.5 -> 4.07278019 | R39: 4.796671399 | S39: 4.241007546 | T39: 4.912303359 | U39: 0
B40: Approved excludable costs
B41: =B28 -> Debt raising costs | N41: =+D41/F$17*(1+F$16)^0.5 -> 0 | O41: 0 | P41: 0 | Q41: 0 | R41: 0 | S41: 0 | T41: 0 | U41: 0
B42: =B29 -> Connection charges | G42: -0.95727863 | H42: -0.995466615 | I42: -0.971216026 | J42: -1.019600593 | N42: 0 | O42: 0 | P42: 0 | Q42: -1.059028022 | R42: -1.072295945 | S42: -1.023048279 | T42: -1.055489775 | U42: 0
B43: =B30 -> Capitalisation policy changes | N43: 0 | O43: 0 | P43: 0 | Q43: 0 | R43: 0 | S43: 0 | T43: 0 | U43: 0
B44: Movements in provisions related to opex | N44: 0 | O44: 0 | P44: 0 | Q44: 0 | R44: 0 | S44: 0 | T44: 0 | U44: 0
B45: =B32 -> Other adjustments or exclusions required by the EBSS | N45: 0 | O45: 0 | P45: 0 | Q45: 0 | R45: 0 | S45: 0 | T45: 0 | U45: 0
B46: Actual opex for EBSS purposes | C46: =C39+SUM(C41:C45) -> 0 | D46: 0 | E46: 0 | F46: 0 | G46: 2.72419661 | H46: 3.457526295 | I46: 3.054922894 | J46: 3.725672677 | K46: 0 | M46: =M39+SUM(M41:M45) -> 0 | N46: 0 | O46: 0 | P46: 0 | Q46: 3.013752168 | R46: 3.724375454 | S46: 3.217959266 | T46: 3.856813584 | U46: =IF(V46="2016-17", U35-(T35-T46), U35-(S35-S46)) -> 3.217959266 | V46: 2015-16 | W46: Select base year used to forecast opex from drop down menu
D47: base year | N47: base year
M48: Incremental gain ($m, 2021-22)
Q49: =(Q33-Q46)-(P33-P46)+(N33-N46) -> 0.01753094196 | R49: =(R33-R46)-(Q33-Q46) -> -0.6947867072 | S49: =(S33-S46)-(R33-R46) -> 0.5202260995 | T49: =(T33-T46)-(S33-S46) -> -0.6285435727 | U49: =(U33-U46)-(T33-T46) -> 0.846944073
M51: Carryover
Q52: Current regulatory control period | V52: Forthcoming regulatory control period
O53: =CONCATENATE("$m, real ",dms_DollarReal) -> $m, real June 2018
Q54: =CRCP_y1 -> 2013-14 | R54: =CRCP_y2 -> 2014-15 | S54: =CRCP_y3 -> 2015-16 | T54: =CRCP_y4 -> 2016-17 | U54: =CRCP_y5 -> 2017-18 | V54: =FRCP_y1 -> 2018-19 | W54: =FRCP_y2 -> 2019-20 | X54: =FRCP_y3 -> 2020-21 | Y54: =FRCP_y4 -> 2021-22 | Z54: =FRCP_y5 -> 2022-23 | AA54: Total
M55: 2013-14 | R55: =$Q$49 -> 0.01753094196 | S55: =$Q$49 -> 0.01753094196 | T55: =$Q$49 -> 0.01753094196 | U55: =$Q$49 -> 0.01753094196 | V55: =$Q$49 -> 0.01753094196
M56: 2014-15 | S56: =$R$49 -> -0.6947867072 | T56: =$R$49 -> -0.6947867072 | U56: -0.6947867072 | V56: -0.6947867072 | W56: -0.6947867072
M57: 2015-16 | T57: =$S$49 -> 0.5202260995 | U57: =$S$49 -> 0.5202260995 | V57: 0.5202260995 | W57: 0.5202260995 | X57: 0.5202260995
M58: 2016-17 | U58: =$T$49 -> -0.6285435727 | V58: =$T$49 -> -0.6285435727 | W58: -0.6285435727 | X58: -0.6285435727 | Y58: -0.6285435727
M59: 2017-18 | V59: =$U$49 -> 0.846944073 | W59: =$U$49 -> 0.846944073 | X59: 0.846944073 | Y59: 0.846944073 | Z59: 0.846944073
M60: Total Carryover Amount ($m, 2016-17) | V60: =+SUM(V55:V57) -> -0.1570296657 | W60: =+SUM(W55:W57) -> -0.1745606077 | X60: =+SUM(X55:X57) -> 0.5202260995 | Y60: =+SUM(Y56:Y57) -> 0 | Z60: =+SUM(U57) -> 0.5202260995 | AA60: =SUM(V60:Z60) -> 0.7088619255
M62: PTRM inputs ($m, 2016-17) | V62: =V60 -> -0.1570296657 | W62: =W60 -> -0.1745606077 | X62: =X60 -> 0.5202260995 | Y62: =Y60 -> 0 | Z62: =Z60 -> 0.5202260995 | AA62: =SUM(V62:Z62) -> 0.7088619255
B64: 7.5.2 - Proposed forecast opex for the EBSS for the forthcoming regulatory control period
C65: Forthcoming regulatory control period
C66: =CONCATENATE("$m, real ",dms_DollarReal) -> $m, real June 2018
C67: =FRCP_y1 -> 2018-19 | D67: =FRCP_y2 -> 2019-20 | E67: =FRCP_y3 -> 2020-21 | F67: =FRCP_y4 -> 2021-22 | G67: =FRCP_y5 -> 2022-23
B68: Forecast opex | C68: 4.382995006 | D68: 4.361029627 | E68: 4.408197476 | F68: 4.361029627 | G68: 4.531764402
B69: Less excluded costs
B70: Debt Raising Costs | C70: 0.006854481094 | D70: 0.007106318564 | E70: 0.007763868609 | F70: 0.007589862108 | G70: 0.007083926979
B71: Connection Charges | C71: 1.010453153 | D71: 1.010453153 | E71: 1.010453153 | F71: 1.010453153 | G71: 1.010453153
C72: 0 | D72: 0 | E72: 0 | F72: 0 | G72: 0
C73: 0 | D73: 0 | E73: 0 | F73: 0 | G73: 0
C74: 0 | D74: 0 | E74: 0 | F74: 0 | G74: 0
C75: 0 | D75: 0 | E75: 0 | F75: 0 | G75: 0
C76: 0 | D76: 0 | E76: 0 | F76: 0 | G76: 0
C77: 0 | D77: 0 | E77: 0 | F77: 0 | G77: 0
C78: 0 | D78: 0 | E78: 0 | F78: 0 | G78: 0
C79: 0 | D79: 0 | E79: 0 | F79: 0 | G79: 0
B80: Adjusted forecast opex ($m, 2016-17) | C80: =+C68-SUM(C70:C79) -> 3.365687372 | D80: 3.343470155 | E80: 3.389980454 | F80: 3.342986612 | G80: 3.514227322

Sheet 7.9 STPIS
B1: =(LOOKUP(dms_Model,dms_Model_List,dms_Worksheet_List)) -> REGULATORY REPORTING STATEMENT
B2: =INDEX(dms_TradingNameFull_List,MATCH(dms_TradingName,dms_TradingName_List)) -> Murraylink
B3: =IF(SUM(dms_SingleYear_Model)>0,CRY,CONCATENATE(FRCP_y1," to ",dms_MultiYear_FinalYear_Result)) -> 2018-19 to 2022-23
B4: 7.9 SERVICE TARGET PERFORMANCE INCENTIVE SCHEME (STPIS)
B6: There are FOUR tables on this worksheet. Each table has been grouped (and sub-grouped) for ease of navigation. See the Instructions sheet on how to group or ungroup tables.
B8: Instructions
B9: =dms_TradingName&" is required to provide the performance actuals for the most recent five years, and the proposed cap, floor and target for the next regulatory control period for the parameters under the service component of the STPIS in table 7.9.1 below." -> Murraylink is required to provide the performance actuals for the most recent five years, and the proposed cap, floor and target for the next regulatory control period for the parameters under the service component of the STPIS in table 7.9.1 below.
B11: 7.9.1 - Historical performance and proposed floor, caps and targets for the service component of the STPIS
B12: Parameter | C12: Performance actuals | I12: Average of actual performance | J12: Floor | K12: Target | L12: Cap | M12: Weighting (% of MAR)
C13: =(LEFT(PRCP_y4,2)&RIGHT(PRCP_y4,2)) -> 2012 | D13: =LEFT(PRCP_y5,2)&RIGHT(PRCP_y5,2) -> 2013 | E13: =(LEFT(CRCP_y1,2)&RIGHT(CRCP_y1,2)) -> 2014 | F13: =(LEFT(CRCP_y2,2)&RIGHT(CRCP_y2,2)) -> 2015 | G13: =(LEFT(CRCP_y3,2)&RIGHT(CRCP_y3,2)) -> 2016 | H13: =(LEFT(CRCP_y3,2)&RIGHT(CRCP_y4,2)) -> 2017
B14: Unplanned outage circuit event rate:
B15: Circuit outage rate - fault | C15: 3 | D15: 2 | E15: 3 | F15: 1 | G15: 4 | I15: =+AVERAGE(C15:G15) -> 2.6 | J15: 158 | K15: 260 | L15: 362 | M15: 0.0075
B16: Circuit outage rate - forced | C16: 12 | D16: 3 | E16: 1 | F16: 4 | G16: 3 | I16: =+AVERAGE(C16:G16) -> 4.6 | J16: 269 | K16: 460 | L16: 843 | M16: 0.005
B17: Loss of supply event frequency (number of events):
B18: > (x) system minutes | I18: =+AVERAGE(C18:G18) -> 
B19: > (y) system minutes | I19: =+AVERAGE(C19:G19) -> 
B20: Average outage duration (minutes): | I20: =+AVERAGE(C20:G20) -> 
B21: Proper operation of equipment (number of events):
B22: Failure of protection system | C22: 0 | D22: 1 | E22: 1 | F22: 1 | G22: 1 | I22: =+AVERAGE(C22:G22) -> 0.8 | J22: 0.4 | K22: 0.8 | L22: 1.2 | M22: 0
B23: Material failure of SCADA | C23: 1 | D23: 1 | E23: 0 | F23: 0 | G23: 1 | I23: =+AVERAGE(C23:G23) -> 0.6 | J23: 0.1101020514 | K23: 0.6 | L23: 1.09 | M23: 0
B24: Incorrect operational isolation of primary or secondary equipment | C24: 0 | D24: 0 | E24: 0 | F24: 0 | G24: 0 | I24: =+AVERAGE(C24:G24) -> 0 | J24: 0 | K24: 0 | L24: 0 | M24: 0
B28: 7.9.2 - Proposed priority projects for the network capability incentive parameter
B29: Project ranking | C29: Transmission Circuit / Injection Point | D29: Scope of works | E29: =CONCATENATE(("If applicable, the present value of quantified benefits associated with the project ($0's, "),CRCP_y5,")") -> If applicable, the present value of quantified benefits associated with the project ($0's, 2017-18) | F29: =CONCATENATE(("Project cost ($0's, "),CRCP_y5,")") -> Project cost ($0's, 2017-18)
F30: =FRCP_y1 -> 2018-19 | G30: =FRCP_y2 -> 2019-20 | H30: =FRCP_y3 -> 2020-21 | I30: =FRCP_y4 -> 2021-22 | J30: =FRCP_y5 -> 2022-23 | K30: Opex | L30: Capex
B31: 1 | N31: Greyed Out for Murray link - conditional formatting to be applied
B32: 2
B33: 3
B34: 4
B35: 5
B36: 6
B37: 7
B38: 8
B39: 9
B40: 10
B41: 11
B42: 12
B43: 13
B44: 14
B45: 15
B46: 16
B51: 7.9.3 – Network limit information
B52: Limit identification | C52: Define limit | D52: Reason for the limit | E52: Is limit addressed by priority project | F52: Supporting information reference
B65: 7.9.4 - Market impact component
B66: Instructions
B67: =dms_TradingName&" is required to provide performance data in accordance with Appendix C of the STPIS for the preceding seven calendar years in table 7.9.4 below. "&dms_TradingName&" is also required to provide relevant information in the MIC workbook attached to Appendix A of the Notice." -> Murraylink is required to provide performance data in accordance with Appendix C of the STPIS for the preceding seven calendar years in table 7.9.4 below. Murraylink is also required to provide relevant information in the MIC workbook attached to Appendix A of the Notice.
D69: Market impact parameter
D70: Planned outage count(DI) | F70: Unplanned outage count (DI)
B71: Year | C71: Month | D71: without exclusions | E71: with exclusions | F71: without exclusions | G71: with exclusions | H71: Market impact parameters
B72: =LEFT(PRCP_y3,4) -> 2010 | C72: January | D72: Not Available | E72: Not Available | F72: Not Available | G72: Not Available | H72: =+E72/12 -> 
B73: 2010 | C73: February | D73: Not Available | E73: Not Available | F73: Not Available | G73: Not Available
B74: 2010 | C74: March | D74: Not Available | E74: Not Available | F74: Not Available | G74: Not Available
B75: 2010 | C75: April | D75: Not Available | E75: Not Available | F75: Not Available | G75: Not Available
B76: 2010 | C76: May | D76: Not Available | E76: Not Available | F76: Not Available | G76: Not Available
B77: 2010 | C77: June | D77: Not Available | E77: Not Available | F77: Not Available | G77: Not Available
B78: 2010 | C78: July | D78: Not Available | E78: Not Available | F78: Not Available | G78: Not Available
B79: 2010 | C79: August | D79: Not Available | E79: Not Available | F79: Not Available | G79: Not Available
B80: 2010 | C80: September | D80: Not Available | E80: Not Available | F80: Not Available | G80: Not Available
B81: 2010 | C81: October | D81: Not Available | E81: Not Available | F81: Not Available | G81: Not Available
B82: 2010 | C82: November | D82: Not Available | E82: Not Available | F82: Not Available | G82: Not Available
B83: 2010 | C83: December | D83: Not Available | E83: Not Available | F83: Not Available | G83: Not Available
B84: =CONCATENATE("Total ",LEFT(PRCP_y3,4)) -> Total 2010 | D84: =+SUM(D72:D83) -> 0 | E84: =+SUM(E72:E83) -> 0 | F84: =+SUM(F72:F83) -> 0 | G84: =+SUM(G72:G83) -> 0 | H84: =+SUM(H72:H83) -> 
B85: =LEFT(PRCP_y4,4) -> 2011 | C85: January | D85: Not Available | E85: Not Available | F85: Not Available | G85: Not Available | H85: =+E85/12 -> 
B86: 2011 | C86: February | D86: Not Available | E86: Not Available | F86: Not Available | G86: Not Available
B87: 2011 | C87: March | D87: Not Available | E87: Not Available | F87: Not Available | G87: Not Available
B88: 2011 | C88: April | D88: Not Available | E88: Not Available | F88: Not Available | G88: Not Available
B89: 2011 | C89: May | D89: Not Available | E89: Not Available | F89: Not Available | G89: Not Available
B90: 2011 | C90: June | D90: Not Available | E90: Not Available | F90: Not Available | G90: Not Available
B91: 2011 | C91: July | D91: Not Available | E91: Not Available | F91: Not Available | G91: Not Available
B92: 2011 | C92: August | D92: Not Available | E92: Not Available | F92: Not Available | G92: Not Available
B93: 2011 | C93: September | D93: Not Available | E93: Not Available | F93: Not Available | G93: Not Available
B94: 2011 | C94: October | D94: Not Available | E94: Not Available | F94: Not Available | G94: Not Available
B95: 2011 | C95: November | D95: Not Available | E95: Not Available | F95: Not Available | G95: Not Available
B96: 2011 | C96: December | D96: Not Available | E96: Not Available | F96: Not Available | G96: Not Available
B97: =CONCATENATE("Total ", LEFT(PRCP_y4,4)) -> Total 2011 | D97: =+SUM(D85:D96) -> 0 | E97: =+SUM(E85:E96) -> 0 | F97: =+SUM(F85:F96) -> 0 | G97: =+SUM(G85:G96) -> 0 | H97: =+SUM(H85:H96) -> 
B98: =LEFT(PRCP_y5,4) -> 2012 | C98: January | D98: Not Available | E98: Not Available | F98: Not Available | G98: Not Available | H98: =+E98/12 -> 
B99: 2012 | C99: February | D99: Not Available | E99: Not Available | F99: Not Available | G99: Not Available
B100: 2012 | C100: March | D100: Not Available | E100: Not Available | F100: Not Available | G100: Not Available
B101: 2012 | C101: April | D101: Not Available | E101: Not Available | F101: Not Available | G101: Not Available
B102: 2012 | C102: May | D102: Not Available | E102: Not Available | F102: Not Available | G102: Not Available
B103: 2012 | C103: June | D103: Not Available | E103: Not Available | F103: Not Available | G103: Not Available
B104: 2012 | C104: July | D104: Not Available | E104: Not Available | F104: Not Available | G104: Not Available
B105: 2012 | C105: August | D105: Not Available | E105: Not Available | F105: Not Available | G105: Not Available
B106: 2012 | C106: September | D106: Not Available | E106: Not Available | F106: Not Available | G106: Not Available
B107: 2012 | C107: October | D107: Not Available | E107: Not Available | F107: Not Available | G107: Not Available
B108: 2012 | C108: November | D108: Not Available | E108: Not Available | F108: Not Available | G108: Not Available
B109: 2012 | C109: December | D109: Not Available | E109: Not Available | F109: Not Available | G109: Not Available
B110: =CONCATENATE("Total ", LEFT(PRCP_y5,4)) -> Total 2012 | D110: =+SUM(D98:D109) -> 0 | E110: =+SUM(E98:E109) -> 0 | F110: =+SUM(F98:F109) -> 0 | G110: =+SUM(G98:G109) -> 0 | H110: =+SUM(H98:H109) -> 
B111: =LEFT(CRCP_y1,4) -> 2013 | C111: January | D111: Not Available | E111: Not Available | F111: Not Available | G111: Not Available | H111: =+E111/12 -> 
B112: 2013 | C112: February | D112: Not Available | E112: Not Available | F112: Not Available | G112: Not Available
B113: 2013 | C113: March | D113: Not Available | E113: Not Available | F113: Not Available | G113: Not Available
B114: 2013 | C114: April | D114: Not Available | E114: Not Available | F114: Not Available | G114: Not Available
B115: 2013 | C115: May | D115: Not Available | E115: Not Available | F115: Not Available | G115: Not Available
B116: 2013 | C116: June | D116: Not Available | E116: Not Available | F116: Not Available | G116: Not Available
B117: 2013 | C117: July | D117: 0 | E117: 0 | F117: 54 | G117: 53 | H117: 0
B118: 2013 | C118: August | D118: 0 | E118: 0 | F118: 29 | G118: 17 | H118: 0
B119: 2013 | C119: September | D119: 0 | E119: 0 | F119: 65 | G119: 1 | H119: 0
B120: 2013 | C120: October | D120: 106 | E120: 4 | F120: 0 | G120: 0 | H120: 0.3333333333
B121: 2013 | C121: November | D121: 0 | E121: 0 | F121: 3 | G121: 0 | H121: 0
B122: 2013 | C122: December | D122: 0 | E122: 0 | F122: 86 | G122: 84 | H122: 0
B123: =CONCATENATE("Total ", LEFT(CRCP_y1,4)) -> Total 2013 | D123: =+SUM(D111:D122) -> 106 | E123: =+SUM(E111:E122) -> 4 | F123: =+SUM(F111:F122) -> 237 | G123: =+SUM(G111:G122) -> 155 | H123: =+SUM(H111:H122) -> 
B124: =LEFT(CRCP_y2,4) -> 2014 | C124: January | D124: 0 | E124: 0 | F124: 11 | G124: 0 | H124: =+E124/12 -> 0
B125: 2014 | C125: February | D125: 0 | E125: 0 | F125: 0 | G125: 0 | H125: 0
B126: 2014 | C126: March | D126: 0 | E126: 0 | F126: 2 | G126: 0 | H126: 0
B127: 2014 | C127: April | D127: 0 | E127: 0 | F127: 0 | G127: 0 | H127: 0
B128: 2014 | C128: May | D128: 0 | E128: 0 | F128: 0 | G128: 0 | H128: 0
B129: 2014 | C129: June | D129: 9 | E129: 9 | F129: 0 | G129: 0 | H129: 0.75
B130: 2014 | C130: July | D130: 0 | E130: 0 | F130: 0 | G130: 0 | H130: 0
B131: 2014 | C131: August | D131: 13 | E131: 13 | F131: 74 | G131: 50 | H131: 1.083333333
B132: 2014 | C132: September | D132: 55 | E132: 55 | F132: 22 | G132: 22 | H132: 4.583333333
B133: 2014 | C133: October | D133: 0 | E133: 0 | F133: 0 | G133: 0 | H133: 0
B134: 2014 | C134: November | D134: 0 | E134: 0 | F134: 1 | G134: 0 | H134: 0
B135: 2014 | C135: December | D135: 30 | E135: 30 | F135: 0 | G135: 0 | H135: 2.5
B136: =CONCATENATE("Total ", LEFT(CRCP_y2,4)) -> Total 2014 | D136: =+SUM(D124:D135) -> 107 | E136: =+SUM(E124:E135) -> 107 | F136: =+SUM(F124:F135) -> 110 | G136: =+SUM(G124:G135) -> 72 | H136: =+SUM(H124:H135) -> 8.916666667
B137: =LEFT(CRCP_y3,4) -> 2015 | C137: January | D137: 0 | E137: 0 | F137: 0 | G137: 0 | H137: =+E137/12 -> 0
B138: 2015 | C138: February | D138: 5 | E138: 5 | F138: 40 | G138: 38 | H138: 0.4166666667
B139: 2015 | C139: March | D139: 34 | E139: 34 | F139: 0 | G139: 0 | H139: 2.833333333
B140: 2015 | C140: April | D140: 13 | E140: 13 | F140: 11 | G140: 9 | H140: 1.083333333
B141: 2015 | C141: May | D141: 0 | E141: 0 | F141: 0 | G141: 0 | H141: 0
B142: 2015 | C142: June | D142: 9 | E142: 9 | F142: 0 | G142: 0 | H142: 0.75
B143: 2015 | C143: July | D143: 88 | E143: 88 | F143: 42 | G143: 0 | H143: 7.333333333
B144: 2015 | C144: August | D144: 0 | E144: 0 | F144: 3 | G144: 3 | H144: 0
B145: 2015 | C145: September | D145: 171 | E145: 171 | F145: 10 | G145: 8 | H145: 14.25
B146: 2015 | C146: October | D146: 0 | E146: 0 | F146: 4 | G146: 4 | H146: 0
B147: 2015 | C147: November | D147: 59 | E147: 59 | F147: 4 | G147: 3 | H147: 4.916666667
B148: 2015 | C148: December | D148: 75 | E148: 75 | F148: 25 | G148: 25 | H148: 6.25
B149: =CONCATENATE("Total ", LEFT(CRCP_y3,4)) -> Total 2015 | D149: =+SUM(D137:D148) -> 454 | E149: =+SUM(E137:E148) -> 454 | F149: =+SUM(F137:F148) -> 139 | G149: =+SUM(G137:G148) -> 90 | H149: =+SUM(H137:H148) -> 37.83333333
B150: =LEFT(CRCP_y4,4) -> 2016 | C150: January | D150: 0 | E150: 0 | F150: 0 | G150: 0 | H150: =+E150/12 -> 0
B151: 2016 | C151: February | D151: 73 | E151: 73 | F151: 0 | G151: 0 | H151: 6.083333333
B152: 2016 | C152: March | D152: 35 | E152: 35 | F152: 7 | G152: 7 | H152: 2.916666667
B153: 2016 | C153: April | D153: 5 | E153: 5 | F153: 4 | G153: 4 | H153: 0.4166666667
B154: 2016 | C154: May | D154: 0 | E154: 0 | F154: 0 | G154: 0 | H154: 0
B155: 2016 | C155: June | D155: 103 | E155: 103 | F155: 17 | G155: 17 | H155: 8.583333333
B156: 2016 | C156: July | D156: 0 | E156: 0 | F156: 14 | G156: 14 | H156: 0
B157: 2016 | C157: August | D157: 1659 | E157: 1659 | F157: 0 | G157: 0 | H157: 138.25
B158: 2016 | C158: September | D158: 0 | E158: 0 | F158: 174 | G158: 0 | H158: 0
B159: 2016 | C159: October | D159: 0 | E159: 0 | F159: 28 | G159: 0 | H159: 0
B160: 2016 | C160: November | D160: 0 | E160: 0 | F160: 1014 | G160: 1014 | H160: 0
B161: 2016 | C161: December | D161: 0 | E161: 0 | F161: 25 | G161: 25 | H161: 0
B162: =CONCATENATE("Total ", LEFT(CRCP_y4,4)) -> Total 2016 | D162: =+SUM(D150:D161) -> 1875 | E162: =+SUM(E150:E161) -> 1875 | F162: =+SUM(F150:F161) -> 1283 | G162: =+SUM(G150:G161) -> 1081 | H162: =+SUM(H150:H161) -> 156.25
B163: =LEFT(CRCP_y5,4) -> 2017 | C163: January | H163: =+E163/12 -> 0
B164: 2017 | C164: February | H164: 0
B165: 2017 | C165: March | H165: 0
B166: 2017 | C166: April | H166: 0
B167: 2017 | C167: May | H167: 0
B168: 2017 | C168: June | H168: 0
B169: 2017 | C169: July | H169: 0
B170: 2017 | C170: August | H170: 0
B171: 2017 | C171: September | H171: 0
B172: 2017 | C172: October | H172: 0
B173: 2017 | C173: November | H173: 0
B174: 2017 | C174: December | H174: 0
B175: =CONCATENATE("Total ", LEFT(CRCP_y5,4)) -> Total 2017 | D175: =+SUM(D163:D174) -> 0 | E175: =+SUM(E163:E174) -> 0 | F175: =+SUM(F163:F174) -> 0 | G175: =+SUM(G163:G174) -> 0 | H175: =+SUM(H163:H174) -> 0

Sheet Sheet1
